Workbook

Sheet 表1-1
A1: 表1-1
A2: 2022年公共财政预算收入表
B3: 单位：万元
A4: 项 目 | B4: 2022年预算数
A5: 一、税收收入 | B5: =SUM(B6:B21) -> 62850
A6: 增值税 | B6: 25700
A7: 营业税
A8: 企业所得税 | B8: 5600
A9: 企业所得税退税
A10: 个人所得税 | B10: 950
A11: 资源税 | B11: 4700
A12: 城市维护建设税 | B12: 4800
A13: 房产税 | B13: 1650
A14: 印花税 | B14: 900
A15: 城镇土地使用税 | B15: 1400
A16: 土地增值税 | B16: 4850
A17: 车船税 | B17: 1400
A18: 耕地占用税 | B18: 2800
A19: 契税 | B19: 8000
A20: 环境保护税 | B20: 100
A21: 其他税收收入
A22: 二、非税收入 | B22: =SUM(B23:B28) -> 116412
A23: 专项收入 | B23: 5830
A24: 行政事业性收费收入 | B24: 5400
A25: 罚没收入 | B25: 6600
A26: 国有资本经营收入
A27: 国有资源（资产）有偿使用收入 | B27: 97982
A28: 其他收入 | B28: 600
A29: 收 入 合 计 | B29: =SUM(B5,B22) -> 179262
A30: 上划中央收入小计 | B30: =SUM(B31:B34) -> 48333
A31: 上划中央国内增值税（50%部分） | B31: 34267
A32: 上划中央消费税（100%部分） | B32: 30
A33: 上划中央所得税（60%部分） | B33: 14036
A34: 上划中央其他税（50%部分）
A35: 上划省收入小计 | B35: =SUM(B36:B38,,B39,B40:B41) -> 13583
A36: 上划省国内增值税（12.5%部分） | B36: 8566
A37: 上划省环境保护税（30%部分） | B37: 43
A38: 上划省所得税（12%部分） | B38: 2807
A39: 上划省城镇土地使用税税（30%部分） | B39: 600
A40: 上划省资源税（25%部分） | B40: 1567
A41: 上划省其他税（12.5%部分）
A42: 地方财税收入合计 | B42: =SUM(B29,B30,B35) -> 241178
A43: 税收收入(100%) | B43: =B5+B30+B35 -> 124766
A44: 非税收入(100%) | B44: =B22 -> 116412

Sheet 表1-2
A1: 表1-2
A2: 沅江市2022年财税收入预算表(含砂石收入)
F4: 单位:万元
A5: 预 算 科 目 | B5: 本年预算 | C5: 其中: | F5: 说 明
C6: 上划中央级 | D6: 上划省级 | E6: 市本级
A7: 一、税收收入小计 | B7: =SUM(B8:B21) -> 124766 | C7: =SUM(C8:C21) -> 48332 | D7: 13584 | E7: =SUM(E8:E21) -> 62850
A8: 1、增值税 | B8: 68533 | C8: 34266 | D8: =B8*0.125 -> 8567 | E8: 25700 | F8: 中央50%,省12.5%,地方37.5%
A9: 2、消费税 | B9: 30 | C9: 30 | E9: =B9-C9-D9 -> 0
A10: 3、企业及个人利息所得税 | B10: 23393 | C10: =B10*0.6 -> 14036 | D10: =B10*0.12 -> 2807 | E10: 6550 | F10: 中央省级72%,地方28%
A11: 4、资源税 | B11: 6267 | D11: =B11*0.25 -> 1567 | E11: 4700 | F11: 省25%,地方75%
A12: 5、城市维护建设税 | B12: 4800 | E12: 4800
A13: 6、房产税 | B13: 1650 | E13: 1650
A14: 7、印花税 | B14: 900 | E14: 900
A15: 8、城镇土地使用税 | B15: 2000 | D15: =B15*0.3 -> 600 | E15: 1400 | F15: 省30%,地方70%
A16: 9、土地增值税 | B16: 4850 | E16: 4850
A17: 10、车船税 | B17: 1400 | E17: 1400
A18: 11、耕地占用税 | B18: 2800 | E18: 2800
A19: 12、契税 | B19: 8000 | E19: 8000
A20: 13、环境保护税 | B20: 143 | D20: =B20*0.3 -> 43 | E20: 100 | F20: 省30%,地方70%
A21: 14、其他税收收入 | C21: =B21*0.5 -> 0 | E21: 0 | F21: 中央50%,省12.5%,地方37.5%
A22: 二、非税收入小计 | B22: =SUM(B23:B26) -> 116412 | C22: =SUM(C23:C26) -> 0 | D22: =SUM(D23:D26) -> 0 | E22: =SUM(E23:E26) -> 116412
A23: 1、专项收入 | B23: 5830 | E23: =B23-C23-D23 -> 5830 | F23: 教育费附加1950，地方教育费附加1350,残保550，其他1980
A24: 2、收费及罚没收入 | B24: 12000 | E24: 12000
A25: 3、国有资源(资产)有偿使用收入 | B25: 97982 | E25: 97982 | F25: 含砂石收入
A26: 4、其他收入 | B26: 600 | E26: 600
A27: 收 入 总 计 | B27: =B7+B22 -> 241178 | C27: =C7+C22 -> 48332 | D27: =D7+D22 -> 13584 | E27: =E7+E22 -> 179262
A28: 备注：按2021年地方财税收入预计数82650万元增长8%确定2022年财税收入

Sheet 表2-1
A1: 表2-1
A2: 沅江市2022年财力测算表
B3: 2022-04-01 | E3: 单位：万元
A4: 项 目 | B4: 本年预算 | C4: 上年预算 | D4: 增减额 | E4: 说 明
A5: 一、本年收入合计 | B5: =SUM(B6:B7)+B24 -> 310419 | C5: =SUM(C6:C7)+C24 -> 273938 | D5: =SUM(D6:D7)+D23+D24 -> 36481
A6: ①、本年收入小计 | B6: =89262+90000 -> 179262 | C6: 80970 | D6: =(B6-C6) -> 98292
A7: ②、上级补助收入小计 | B7: =SUM(B8:B23) -> 123907 | C7: =SUM(C8:C23) -> 116968 | D7: 6939
A8: 税收返还 | B8: 4059 | C8: 4059 | D8: 0 | E8: 不再按1：0.3增量返还，改按2015年结算数填列（固定）
A9: 所得税基数返还 | B9: 726 | C9: 726 | D9: 0 | E9: 1210*0.72-520*0.28，（企业所得税基数273万+个人所得税基数937万）*0.72-省级企业所得税完成数的28%)
A10: 成品油价格和税费改革税收返还收入 | B10: 1112 | C10: 1112 | D10: 0
A11: 其他税收基数返还 | B11: 1972 | C11: 1972 | D11: 0
A12: 调资转移支付补助 | B12: 17954 | C12: 17954 | D12: 0
A13: 均衡性转移支付补助 | B13: 56000 | C13: 54122 | D13: 1878
A14: 省对县级财力保障转移支付补助 | B14: 23000 | C14: 17939 | D14: 5061
A15: 生态功能区转移支付补助 | B15: 2902 | C15: 2902 | D15: 0
A16: 农村税改转移支付补助 | B16: 1829 | C16: 1829 | D16: 0
A17: 洞庭湖减负转移支付补助 | B17: 2205 | C17: 2205 | D17: 0
A18: 国有农场税费改革转移支付 | B18: 596 | C18: 596 | D18: 0
A19: 农业税降点及取消特产税结算补助 | B19: 5656 | C19: 5656 | D19: 0
A20: 定额结算补助 | B20: 3058 | C20: 3058 | D20: 0 | E20: 林业局138万，市管中心126万,渔政执法42万,工商局基数1646，卫生绩效工资补助427
A21: 公共安全转移支出补助 | B21: 928 | C21: 928 | D21: 0
A22: 教育绩效工资补助 | B22: 1310 | C22: 1310 | D22: 0
A23: 禁捕退捕 | B23: 600 | C23: 600 | D23: 0
A24: ③、调入资金 | B24: =1250+6000 -> 7250 | C24: 76000 | D24: -68750 | E24: 基金调入
A25: 二、上解支出 | B25: =SUM(B26:B27)+B38 -> 7186 | C25: =SUM(C26:C27)+C38 -> 7186 | D25: 0
A26: 1、体制上解 | B26: 580 | C26: 580 | D26: 0
A27: 2、专项上解 | B27: =SUM(B28:B37) -> 6451 | C27: =SUM(C28:C37) -> 6451 | D27: 0
A28: 农业税价差 | B28: 168 | C28: 168 | D28: 0
A29: 向中央上解 | B29: 254 | C29: 254 | D29: 0
A30: 下放单位上解 | B30: 156 | C30: 156 | D30: 0
A31: 法院、检察院上划 | B31: 2393 | C31: 2393 | D31: 0
A32: 援疆援藏 | B32: 128 | C32: 128 | D32: 0
A33: 省直管县对市上解基数 | B33: 578 | C33: 578 | D33: 0
A34: 粮食风险基金 | B34: 528 | C34: 528 | D34: 0
A35: 省与县税费分成上解 | B35: 534 | C35: 534 | D35: 0
A36: 事权支出责任基数上解 | B36: 1712 | C36: 1712 | D36: 0
A37: 其他上解 | D37: 0
A38: 3.出口退税上解 | B38: 155 | C38: 155 | D38: 0
A39: 三、归还地方政府债券本金支出 | D39: 0
A40: 四、可用财力 | B40: =B5-B25-B39 -> 303233 | C40: =C5-C25-C39 -> 266752 | D40: 36481

Sheet 表2-2
A1: 表2-1
A2: 2022年一般公共预算支出表
A4: 功能科目 | C4: 本年预算数
A5: 代码 | B5: 名称
A6: 201 | B6: 一般公共服务 | C6: 67332
A7: 20101 | B7: 人大事务 | C7: 821
A8: 2010101 | B8: 行政运行 | C8: 561
A9: 2010102 | B9: 一般行政管理事务 | C9: 40
A10: 2010103 | B10: 机关服务
A11: 2010104 | B11: 人大会议 | C11: 24
A12: 2010105 | B12: 人大立法
A13: 2010106 | B13: 人大监督 | C13: 50
A14: 2010107 | B14: 人大代表履职能力提升 | C14: 40
A15: 2010108 | B15: 代表工作 | C15: 28
A16: 2010109 | B16: 人大信访工作
A17: 2010150 | B17: 事业运行 | C17: 42
A18: 2010199 | B18: 其他人大事务支出 | C18: 36
A19: 20102 | B19: 政协事务 | C19: 589
A20: 2010201 | B20: 行政运行 | C20: 401
A21: 2010202 | B21: 一般行政管理事务 | C21: 40
A22: 2010203 | B22: 机关服务
A23: 2010204 | B23: 政协会议 | C23: 20
A24: 2010205 | B24: 委员视察 | C24: 46
A25: 2010206 | B25: 参政议政
A26: 2010250 | B26: 事业运行
A27: 2010299 | B27: 其他政协事务支出 | C27: 82
A28: 20103 | B28: 政府办公厅(室)及相关机构事务 | C28: 43495
A29: 2010301 | B29: 行政运行 | C29: 35838
A30: 2010302 | B30: 一般行政管理事务 | C30: 7389
A31: 2010303 | B31: 机关服务
A32: 2010304 | B32: 专项服务
A33: 2010305 | B33: 专项业务及机关事务管理
A34: 2010306 | B34: 政务公开审批
A35: 2010308 | B35: 信访事务 | C35: 218
A36: 2010309 | B36: 参事事务
A37: 2010350 | B37: 事业运行
A38: 2010399 | B38: 其他政府办公厅（室）及相关机构事务支出 | C38: 50
A39: 20104 | B39: 发展与改革事务 | C39: 1897
A40: 2010401 | B40: 行政运行 | C40: 755
A41: 2010402 | B41: 一般行政管理事务 | C41: 142
A42: 2010403 | B42: 机关服务
A43: 2010404 | B43: 战略规划与实施 | C43: 1000
A44: 2010405 | B44: 日常经济运行调节
A45: 2010406 | B45: 社会事业发展规划
A46: 2010407 | B46: 经济体制改革研究
A47: 2010408 | B47: 物价管理
A48: 2010450 | B48: 事业运行
A49: 2010499 | B49: 其他发展与改革事务支出
A50: 20105 | B50: 统计信息事务 | C50: 260
A51: 2010501 | B51: 行政运行 | C51: 190
A52: 2010502 | B52: 一般行政管理事务 | C52: 70
A53: 2010503 | B53: 机关服务
A54: 2010504 | B54: 信息事务
A55: 2010505 | B55: 专项统计业务
A56: 2010506 | B56: 统计管理
A57: 2010507 | B57: 专项普查活动
A58: 2010508 | B58: 统计抽样调查
A59: 2010550 | B59: 事业运行
A60: 2010599 | B60: 其他统计信息事务支出
A61: 20106 | B61: 财政事务 | C61: 3971
A62: 2010601 | B62: 行政运行 | C62: 2020
A63: 2010602 | B63: 一般行政管理事务 | C63: 861
A64: 2010603 | B64: 机关服务
A65: 2010604 | B65: 预算改革业务
A66: 2010605 | B66: 财政国库业务
A67: 2010606 | B67: 财政监察
A68: 2010607 | B68: 信息化建设 | C68: 1090
A69: 2010608 | B69: 财政委托业务支出
A70: 2010650 | B70: 事业运行
A71: 2010699 | B71: 其他财政事务支出
A72: 20107 | B72: 税收事务 | C72: 6000
A73: 2010701 | B73: 行政运行
A74: 2010702 | B74: 一般行政管理事务
A75: 2010703 | B75: 机关服务
A76: 2010709 | B76: 信息化建设
A77: 2010710 | B77: 税收业务
A78: 2010750 | B78: 事业运行
A79: 2010799 | B79: 其他税收事务支出 | C79: 6000
A80: 20108 | B80: 审计事务 | C80: 614
A81: 2010801 | B81: 行政运行 | C81: 398
A82: 2010802 | B82: 一般行政管理事务 | C82: 36
A83: 2010803 | B83: 机关服务
A84: 2010804 | B84: 审计业务 | C84: 180
A85: 2010805 | B85: 审计管理
A86: 2010806 | B86: 信息化建设
A87: 2010850 | B87: 事业运行
A88: 2010899 | B88: 其他审计事务支出
A89: 20109 | B89: 海关事务 | C89: 0
A90: 2010901 | B90: 行政运行
A91: 2010902 | B91: 一般行政管理事务
A92: 2010903 | B92: 机关服务
A93: 2010905 | B93: 缉私办案
A94: 2010907 | B94: 口岸管理
A95: 2010908 | B95: 信息化建设
A96: 2010909 | B96: 海关关务
A97: 2010910 | B97: 关税征管
A98: 2010911 | B98: 海关监管
A99: 2010912 | B99: 检验检疫
A100: 2010950 | B100: 事业运行
A101: 2010999 | B101: 其他海关事务支出
A102: 20111 | B102: 纪检监察事务 | C102: 1568
A103: 2011101 | B103: 行政运行 | C103: 1281
A104: 2011102 | B104: 一般行政管理事务 | C104: 287
A105: 2011103 | B105: 机关服务
A106: 2011104 | B106: 大案要案查处
A107: 2011105 | B107: 派驻派出机构
A108: 2011106 | B108: 巡视工作
A109: 2011150 | B109: 事业运行
A110: 2011199 | B110: 其他纪检监察事务支出
A111: 20113 | B111: 商贸事务 | C111: 300
A112: 2011301 | B112: 行政运行
A113: 2011302 | B113: 一般行政管理事务
A114: 2011303 | B114: 机关服务
A115: 2011304 | B115: 对外贸易管理
A116: 2011305 | B116: 国际经济合作
A117: 2011306 | B117: 外资管理
A118: 2011307 | B118: 国内贸易管理
A119: 2011308 | B119: 招商引资 | C119: 300
A120: 2011350 | B120: 事业运行
A121: 2011399 | B121: 其他商贸事务支出
A122: 20114 | B122: 知识产权事务 | C122: 0
A123: 2011401 | B123: 行政运行
A124: 2011402 | B124: 一般行政管理事务
A125: 2011403 | B125: 机关服务
A126: 2011404 | B126: 专利审批
A127: 2011405 | B127: 知识产权战略和规划
A128: 2011408 | B128: 国际合作与交流
A129: 2011409 | B129: 知识产权宏观管理
A130: 2011410 | B130: 商标管理
A131: 2011411 | B131: 原产地地理标志管理
A132: 2011450 | B132: 事业运行
A133: 2011499 | B133: 其他知识产权事务支出
A134: 20123 | B134: 民族事务 | C134: 0
A135: 2012301 | B135: 行政运行
A136: 2012302 | B136: 一般行政管理事务
A137: 2012303 | B137: 机关服务
A138: 2012304 | B138: 民族工作专项
A139: 2012350 | B139: 事业运行
A140: 2012399 | B140: 其他民族事务支出
A141: 20125 | B141: 港澳台事务 | C141: 0
A142: 2012501 | B142: 行政运行
A143: 2012502 | B143: 一般行政管理事务
A144: 2012503 | B144: 机关服务
A145: 2012504 | B145: 港澳事务
A146: 2012505 | B146: 台湾事务
A147: 2012550 | B147: 事业运行
A148: 2012599 | B148: 其他港澳台事务支出
A149: 20126 | B149: 档案事务 | C149: 206
A150: 2012601 | B150: 行政运行 | C150: 131
A151: 2012602 | B151: 一般行政管理事务 | C151: 75
A152: 2012603 | B152: 机关服务
A153: 2012604 | B153: 档案馆
A154: 2012699 | B154: 其他档案事务支出
A155: 20128 | B155: 民主党派及工商联事务 | C155: 95
A156: 2012801 | B156: 行政运行 | C156: 57
A157: 2012802 | B157: 一般行政管理事务 | C157: 38
A158: 2012803 | B158: 机关服务
A159: 2012804 | B159: 参政议政
A160: 2012850 | B160: 事业运行
A161: 2012899 | B161: 其他民主党派及工商联事务支出
A162: 20129 | B162: 群众团体事务 | C162: 607
A163: 2012901 | B163: 行政运行 | C163: 282
A164: 2012902 | B164: 一般行政管理事务 | C164: 240
A165: 2012903 | B165: 机关服务
A166: 2012906 | B166: 工会事务
A167: 2012950 | B167: 事业运行 | C167: 85
A168: 2012999 | B168: 其他群众团体事务支出
A169: 20131 | B169: 党委办公厅（室）及相关机构事务 | C169: 985
A170: 2013101 | B170: 行政运行 | C170: 683
A171: 2013102 | B171: 一般行政管理事务 | C171: 302
A172: 2013103 | B172: 机关服务
A173: 2013105 | B173: 专项业务
A174: 2013150 | B174: 事业运行
A175: 2013199 | B175: 其他党委办公厅（室）及相关机构事务支出
A176: 20132 | B176: 组织事务 | C176: 896
A177: 2013201 | B177: 行政运行 | C177: 325
A178: 2013202 | B178: 一般行政管理事务 | C178: 519
A179: 2013203 | B179: 机关服务
A180: 2013204 | B180: 公务员事务
A181: 2013250 | B181: 事业运行
A182: 2013299 | B182: 其他组织事务支出 | C182: 52
A183: 20133 | B183: 宣传事务 | C183: 262
A184: 2013301 | B184: 行政运行 | C184: 130
A185: 2013302 | B185: 一般行政管理事务 | C185: 132
A186: 2013303 | B186: 机关服务
A187: 2013304 | B187: 宣传管理
A188: 2013350 | B188: 事业运行
A189: 2013399 | B189: 其他宣传事务支出
A190: 20134 | B190: 统战事务 | C190: 257
A191: 2013401 | B191: 行政运行 | C191: 169
A192: 2013402 | B192: 一般行政管理事务 | C192: 88
A193: 2013403 | B193: 机关服务
A194: 2013404 | B194: 宗教事务
A195: 2013405 | B195: 华侨事务
A196: 2013450 | B196: 事业运行
A197: 2013499 | B197: 其他统战事务支出
A198: 20135 | B198: 对外联络事务 | C198: 0
A199: 2013501 | B199: 行政运行
A200: 2013502 | B200: 一般行政管理事务
A201: 2013503 | B201: 机关服务
... 1047 more rows

Sheet 表2-3
A1: 表2-3
A2: 2022年一般公共预算基本支出表
A3: 单位：万元
A4: 部门预算支出经济分类科目 | C4: 本年一般公共预算基本支出
A5: 科目编码 | B5: 科目名称 | C5: 合计 | D5: 人员经费 | E5: 公用经费
A6: 301 | B6: 工资福利支出 | C6: 116,098.13 | D6: 116,098.13
A7: 30101 | B7: 基本工资 | C7: 52,022.15 | D7: 52,022.15
A8: 30102 | B8: 津贴补贴 | C8: 11,618.61 | D8: 11,618.61
A9: 30103 | B9: 奖金 | C9: 880.04 | D9: 880.04
A10: 30107 | B10: 绩效工资 | C10: 22,062.95 | D10: 22,062.95
A11: 30108 | B11: 机关事业单位基本养老保险缴费 | C11: 13,277.93 | D11: 13,277.93
A12: 30110 | B12: 职工基本医疗保险缴费 | C12: 4,975.95 | D12: 4,975.95
A13: 30112 | B13: 其他社会保障缴费 | C13: 1,768.09 | D13: 1,768.09
A14: 30113 | B14: 住房公积金 | C14: 9,415.86 | D14: 9,415.86
A15: 30199 | B15: 其他工资福利支出 | C15: 76.56 | D15: 76.56
A16: 303 | B16: 对个人和家庭的补助 | C16: 3,709.11 | D16: 3,707.81 | E16: 1.30
A17: 30301 | B17: 离休费 | C17: 225.71 | D17: 225.71
A18: 30302 | B18: 退休费 | C18: 16.26 | D18: 14.96 | E18: 1.30
A19: 30305 | B19: 生活补助 | C19: 805.29 | D19: 805.29
A20: 30307 | B20: 医疗费补助 | C20: 1,944.42 | D20: 1,944.42
A21: 30399 | B21: 其他对个人和家庭的补助 | C21: 717.43 | D21: 717.43
A22: 302 | B22: 商品和服务支出 | C22: 7,778.30 | E22: 7,778.30
A23: 30201 | B23: 办公费 | C23: 1,451.16 | E23: 1,451.16
A24: 30202 | B24: 印刷费 | C24: 431.53 | E24: 431.53
A25: 30203 | B25: 咨询费 | C25: 28.20 | E25: 28.20
A26: 30204 | B26: 手续费 | C26: 6.00 | E26: 6.00
A27: 30205 | B27: 水费 | C27: 71.85 | E27: 71.85
A28: 30206 | B28: 电费 | C28: 379.00 | E28: 379.00
A29: 30207 | B29: 邮电费 | C29: 77.20 | E29: 77.20
A30: 30209 | B30: 物业管理费 | C30: 185.84 | E30: 185.84
A31: 30211 | B31: 差旅费 | C31: 924.10 | E31: 924.10
A32: 30213 | B32: 维修（护）费 | C32: 457.75 | E32: 457.75
A33: 30214 | B33: 租赁费 | C33: 20.50 | E33: 20.50
A34: 30215 | B34: 会议费 | C34: 227.39 | E34: 227.39
A35: 30216 | B35: 培训费 | C35: 123.50 | E35: 123.50
A36: 30217 | B36: 公务接待费 | C36: 324.85 | E36: 324.85
A37: 30218 | B37: 专用材料费 | C37: 10.00 | E37: 10.00
A38: 30224 | B38: 被装购置费 | C38: 19.00 | E38: 19.00
A39: 30226 | B39: 劳务费 | C39: 108.70 | E39: 108.70
A40: 30227 | B40: 委托业务费 | C40: 1.30 | E40: 1.30
A41: 30228 | B41: 工会经费 | C41: 1,280.10 | E41: 1,280.10
A42: 30229 | B42: 福利费 | C42: 947.40 | E42: 947.40
A43: 30231 | B43: 公务用车运行维护费 | C43: 261.63 | E43: 261.63
A44: 30239 | B44: 其他交通费用 | C44: 212.90 | E44: 212.90
A45: 30299 | B45: 其他商品和服务支出 | C45: 228.40 | E45: 228.40
A46: 31002 | B46: 办公设备购置 | C46: 5.00 | E46: 5.00
A47: 31003 | B47: 专用设备购置 | C47: 5.00 | E47: 5.00
A48: 310 | B48: 资本性支出 | C48: 10.00 | E48: 10.00
A49: 合 计 | C49: 127,595.54 | D49: 119,805.94 | E49: 7,789.60

Sheet 表3
A1: 表3
A2: 2022年本级政府性基金预算收支总表
C3: 2022-04-01 | D3: 单位：万元
A4: 收 入 | C4: 支 出
A5: 项 目 | B5: 预算数 | C5: 项 目 | D5: 预算数
A6: 一、农网还贷资金收入 | C6: 一、文化体育与传媒支出
A7: 二、海南省高等级公路车辆通行附加费收入 | C7: 二、社会保障和就业支出
A8: 三、港口建设费收入 | C8: 三、节能环保支出
A9: 四、散装水泥专项资金收入 | C9: 四、城乡社区支出 | D9: =SUM(D10,D22,D25,D27:D27,D28,D30) -> 45,330
A10: 五、新型墙体材料专项基金收入 | C10: 国有土地使用权出让收入安排的支出 | D10: =SUM(D11:D21) -> 42,750
A11: 六、旅游发展基金收入 | C11: 征地和拆迁补偿支出 | D11: 500
A12: 七、新菜地开发建设基金收入 | C12: 土地开发支出
A13: 八、新增建设用地土地有偿使用费收入 | C13: 城市建设支出 | D13: 5,000
A14: 九、南水北调工程建设基金收入 | C14: 农村基础设施建设支出 | D14: 2,500
A15: 十、城市公用事业附加收入 | C15: 补助被征地农民支出
A16: 十一、国有土地收益基金收入 | C16: 土地出让业务支出 | D16: 1,050
A17: 十二、农业土地开发资金收入 | C17: 廉租住房支出
A18: 十三、国有土地使用权出让收入 | B18: =SUM(B19:B23) -> 50,000 | C18: 支付破产或改制企业职工安置费
A19: 土地出让价款收入 | B19: 50,000 | C19: 棚户区改造支出
A20: 补缴的土地价款 | C20: 公共租赁住房支出
A21: 划拨土地收入 | C21: 其他国有土地使用权出让收入安排的支出 | D21: =39700-6000 -> 33,700
A22: 缴纳新增建设用地土地有偿使用费 | C22: 城市公用事业附加安排的支出 | D22: =SUM(D23:D24) -> 0
A23: 其他土地出让收入 | C23: 城市公共设施
A24: 十四、大中型水库库区基金收入 | C24: 其他城市公用事业附加安排的支出
A25: 十五、彩票公益金收入 | B25: =SUM(B26:B27) -> 0 | C25: 国有土地收益基金支出 | D25: =SUM(D26:D26) -> 0
A26: 福利彩票公益金收入 | C26: 其他国有土地收益基金支出
A27: 体育彩票公益金收入 | C27: 农业土地开发资金支出
A28: 十六、城市基础设施配套费收入 | B28: 1,380 | C28: 城市基础设施配套费安排的支出 | D28: =SUM(D29:D29) -> 1,380
A29: 十七、污水处理费收入 | B29: 1,200 | C29: 城市公共设施 | D29: 1,380
A30: 十八、国家重大水利工程建设基金收入 | B30: =SUM(B31:B33) -> 0 | C30: 污水处理费安排的支出 | D30: 1,200
A31: 南水北调工程建设资金 | C31: 五、农林水支出
A32: 三峡工程后续工作资金 | C32: 六、交通运输支出 | D32: =SUM(D33) -> 55
A33: 省级重大水利工程建设资金 | C33: 车辆通行费安排的支出 | D33: =SUM(D34:D34) -> 55
A34: 十九、车辆通行费 | B34: 55 | C34: 其他车辆通行费安排的支出 | D34: 55
A35: 二十、其他政府性基金收入 | B35: 30,000 | C35: 七、资源勘探信息等支出 | D35: =SUM(D36) -> 0
A36: 旱改水指标交易 | B36: 20000 | C36: 散装水泥专项资金支出 | D36: =SUM(D37:D37) -> 0
A37: 其他砂石收入 | B37: 10000 | C37: 其他散装水泥专项资金支出
C38: 八、地方政府专项债务付息支出 | D38: 4,132
A39: 减：上解上级支出 | B39: -7250 | C39: 九、其他支出 | D39: =SUM(D40:D40) -> 25,868
C40: 其他政府性基金支出 | D40: 25,868
A41: 收入合计 | B41: 75,385 | C41: 支出合计 | D41: =SUM(D6,D7,D8,D9,D31,D32,D35,D38,D39) -> 75,385

Sheet 表4
A1: 表4
A2: 2022年部门单位人员信息明细表
A4: 单位名称 | B4: 2022年部门单位核定人数
B5: 总人数合计 | C5: 在职人员小计 | D5: 行政人员 | E5: 事业人员 | F5: 离休人员 | G5: 退休人员 | H5: 分流人员 | I5: 遗属
A6: 合计 | B6: 24034 | C6: 12788 | D6: 2722 | E6: 10066 | F6: 21 | G6: 9283 | H6: 1077 | I6: 865
A7: 沅江市人民代表大会常务委员会 | B7: 88 | C7: 46 | D7: 44 | E7: 2 | G7: 41 | I7: 1
A8: 中国人民政治协商会议湖南省沅江市委员会 | B8: 71 | C8: 37 | D8: 32 | E8: 5 | G8: 33 | I8: 1
A9: 中共沅江市委办公室 | B9: 61 | C9: 39 | D9: 37 | E9: 2 | G9: 18 | I9: 4
A10: 沅江市史志编纂室 | B10: 7 | C10: 3 | D10: 1 | E10: 2 | G10: 4
A11: 沅江市机关事务服务中心 | B11: 34 | C11: 13 | D11: 9 | E11: 4 | G11: 19 | I11: 2
A12: 中共沅江市委组织部 | B12: 57 | C12: 29 | D12: 28 | E12: 1 | G12: 28
A13: 中共沅江市委老干部局 | B13: 9 | C13: 8 | D13: 3 | E13: 5 | G13: 1
A14: 中共沅江市委统一战线工作部 | B14: 31 | C14: 16 | D14: 12 | E14: 4 | G14: 15
A15: 中共沅江市委政法委 | B15: 42 | C15: 17 | D15: 14 | E15: 3 | G15: 24 | I15: 1
A16: 湖南省沅江市工商业联合会 | B16: 10 | C16: 6 | D16: 6 | G16: 4
A17: 沅江市妇女联合会 | B17: 8 | C17: 6 | D17: 6 | G17: 2
A18: 中国共产主义共青团沅江市委员会 | B18: 5 | C18: 5 | D18: 5
A19: 沅江市人民政府办公室 | B19: 99 | C19: 48 | D19: 48 | F19: 3 | G19: 45 | I19: 3
A20: 沅江市行政审批服务局 | B20: 17 | C20: 17 | D20: 8 | E20: 9
A21: 沅江市信访局 | B21: 15 | C21: 11 | D21: 10 | E21: 1 | I21: 4
A22: 中国共产党沅江市纪律检查委员会 | B22: 123 | C22: 103 | D22: 103 | G22: 20
A23: 沅江市机构编制委员会 | B23: 11 | C23: 9 | D23: 7 | E23: 2 | G23: 2
A24: 沅江市审计局 | B24: 62 | C24: 34 | D24: 15 | E24: 19 | G24: 27 | I24: 1
A25: 财政局系统（含事务中心、投评中心、支付局） | B25: 207 | C25: 141 | D25: 98 | E25: 43 | G25: 64 | I25: 2
A26: 沅江市总工会 | B26: 36 | C26: 21 | D26: 14 | E26: 7 | G26: 15
A27: 沅江市统计局 | B27: 33 | C27: 20 | D27: 12 | E27: 8 | G27: 13
A28: 沅江市场和质量监督管理局 | B28: 400 | C28: 248 | D28: 108 | E28: 140 | F28: 1 | G28: 135 | I28: 16
A29: 沅江市公安局 | B29: 558 | C29: 427 | D29: 427 | G29: 120 | I29: 11
A30: 沅江市看守所 | B30: 29 | C30: 17 | D30: 17 | G30: 12
A31: 沅江市拘留所 | B31: 16 | C31: 10 | D31: 10 | G31: 6
A32: 沅江市森林公安局 | B32: 9 | C32: 9 | D32: 9
A33: 沅江市公安局交通警察大队 | B33: 97 | C33: 69 | D33: 69 | G33: 26 | I33: 2
A34: 沅江市司法局 | B34: 107 | C34: 79 | D34: 72 | E34: 7 | G34: 26 | I34: 2
A35: 沅江市法律援助中心 | B35: 7 | C35: 7 | E35: 7
A36: 中共沅江市委党校 | B36: 51 | C36: 30 | D36: 17 | E36: 13 | G36: 21
A37: 中共沅江市委巡察工作领导小组办公室 | B37: 12 | C37: 12 | D37: 12
A38: 教育局系统（含机关） | B38: 9715 | C38: 5315 | D38: 10 | E38: 5305 | F38: 8 | G38: 3889 | I38: 503
A39: 其中：机关 | B39: 321 | C39: 169 | D39: 10 | E39: 159 | G39: 143 | I39: 9
A40: 其中：教师进修学校 | B40: 61 | C40: 37 | E40: 37 | G40: 24
A41: 其中：青少年活动中心 | B41: 14 | C41: 14 | E41: 14
A42: 沅江市文化体育广电新闻出版局机关 | B42: 46 | C42: 19 | D42: 19 | G42: 27
A43: 沅江市文化馆 | B43: 31 | C43: 19 | E43: 19 | G43: 12
A44: 沅江市图书馆 | B44: 26 | C44: 16 | E44: 16 | G44: 9 | I44: 1
A45: 沅江市洞庭博物馆 | B45: 16 | C45: 7 | D45: 7 | G45: 9
A46: 沅江市文化市场综合执法大队 | B46: 31 | C46: 25 | D46: 25 | G46: 6
A47: 沅江市全民健身服务中心 | B47: 13 | C47: 11 | E47: 11 | G47: 2
A48: 沅江市融媒体中心 | B48: 166 | C48: 75 | E48: 75 | G48: 87 | I48: 4
A49: 沅江市文学艺术界联合会 | B49: 7 | C49: 3 | D49: 3 | G49: 4
A50: 沅江市科学技术协会 | B50: 26 | C50: 17 | D50: 11 | E50: 6 | G50: 9
A51: 沅江市档案馆 | B51: 24 | C51: 14 | D51: 13 | E51: 1 | G51: 10
A52: 中共沅江市委宣传部 | B52: 27 | C52: 14 | D52: 11 | E52: 3 | G52: 13
A53: 中共沅江市委网络安全和信息化委员会办公室 | B53: 6 | C53: 6 | D53: 6
A54: 城管系统 | B54: 466 | C54: 310 | D54: 59 | E54: 251 | F54: 0 | G54: 147 | H54: 0 | I54: 9
A55: 沅江市城市管理和综合执法局 | B55: 33 | C55: 20 | D55: 12 | E55: 8 | G55: 12 | I55: 1
A56: 沅江市市政工程事务中心 | B56: 45 | C56: 38 | E56: 38 | G56: 7
A57: 沅江市环境卫生服务中心 | B57: 185 | C57: 78 | E57: 78 | G57: 101 | I57: 6
A58: 沅江市园林绿化服务中心 | B58: 55 | C58: 35 | E58: 35 | G58: 18 | I58: 2
A59: 沅江市城市建设管理监察大队 | B59: 87 | C59: 81 | D59: 47 | E59: 34 | G59: 6
A60: 沅江市城市规划执法大队 | B60: 29 | C60: 29 | E60: 29
A61: 沅江市路灯灯饰管理所 | B61: 22 | C61: 19 | E61: 19 | G61: 3
A62: 沅江市湘北市场管理办公室 | B62: 4 | C62: 4 | E62: 4
A63: 垃圾无害化处理中心 | B63: 6 | C63: 6 | E63: 6
A64: 沅江市发展和改革局 | B64: 158 | C64: 81 | D64: 63 | E64: 18 | F64: 1 | G64: 71 | I64: 5
A65: 沅江市住房和城乡建设局 | B65: 174 | C65: 125 | D65: 47 | E65: 78 | G65: 45 | I65: 4
A66: 湖南沅江经济开发区管理委员会（含船舶园） | B66: 77 | C66: 70 | D66: 11 | E66: 59 | G66: 6 | I66: 1
A67: 沅江市住房保障服务中心 | B67: 298 | C67: 157 | E67: 157 | G67: 135 | I67: 6
A68: 沅江市自然资源局机关 | B68: 147 | C68: 100 | D68: 36 | E68: 64 | G68: 40 | I68: 7
A69: 沅江市国土局土地开发整理复垦中心 | B69: 27 | C69: 23 | E69: 23 | G69: 4
A70: 交易服务中心 | B70: 13 | C70: 10 | E70: 10 | G70: 3
A71: 拆迁所 | B71: 17 | C71: 14 | E71: 14 | G71: 3
A72: 测量队 | B72: 14 | C72: 12 | E72: 12 | G72: 2
A73: 土地储备中心 | B73: 9 | C73: 8 | E73: 8 | G73: 1
A74: 沅江市不动产登记中心 | B74: 70 | C74: 66 | E74: 66 | G74: 4
A75: 交通运输局系统（含水运事务中心） | B75: 392 | C75: 284 | D75: 19 | E75: 265 | G75: 100 | I75: 8
A76: 沅江市公路建设养护中心 | B76: 73 | C76: 50 | D76: 8 | E76: 42 | G76: 10 | I76: 13
A77: 沅江市科学技术和工业信息化局 | B77: 178 | C77: 59 | D77: 52 | E77: 7 | F77: 2 | G77: 112 | I77: 5
A78: 沅江市应急管理局 | B78: 42 | C78: 38 | D78: 19 | E78: 19 | G78: 4
A79: 沅江市商务局 | B79: 86 | C79: 28 | D79: 28 | G79: 57 | I79: 1
A80: 沅江市市场管理服务中心 | B80: 108 | C80: 71 | E80: 71 | G80: 36 | I80: 1
A81: 沅江市投资促进服务中心 | B81: 17 | C81: 17 | E81: 17
A82: 民政局系统 | B82: 179 | C82: 110 | D82: 14 | E82: 96 | G82: 69
A83: 沅江市民政局机关 | B83: 81 | C83: 36 | D83: 14 | E83: 22 | G83: 42 | I83: 3
A84: 沅江市社会福利院 | B84: 25 | C84: 12 | E84: 12 | G84: 13
A85: 沅江市流浪乞讨人员救助站 | B85: 10 | C85: 9 | E85: 9 | G85: 1
A86: 沅江市殡仪馆 | B86: 32 | C86: 27 | E86: 27 | G86: 5
A87: 沅江市烈士陵园服务中心 | B87: 8 | C87: 4 | E87: 4 | G87: 4
A88: 沅江市社会福利有奖募捐委员会办公室 | B88: 6 | C88: 6 | E88: 6
A89: 沅江市社会福利中心 | B89: 10 | C89: 8 | E89: 8 | G89: 2
A90: 沅江市婚姻登记处 | B90: 10 | C90: 8 | E90: 8 | G90: 2
A91: 沅江市残疾人联合会 | B91: 24 | C91: 20 | D91: 19 | E91: 1 | G91: 4
A92: 沅江市人力资源和社会保障局 | B92: 73 | C92: 38 | D92: 26 | E92: 12 | G92: 35
A93: 沅江市工伤保险服务中心 | B93: 9 | C93: 9 | E93: 9
A94: 沅江市社会保险服务中心 | B94: 55 | C94: 39 | D94: 20 | E94: 19 | G94: 16
A95: 沅江市再就业服务管理局 | B95: 33 | C95: 20 | D95: 18 | E95: 2 | G95: 13
A96: 沅江市劳动监察局 | B96: 7 | C96: 7 | D96: 5 | E96: 2
A97: 沅江市医疗保障局 | B97: 57 | C97: 49 | D97: 44 | E97: 5 | G97: 8
A98: 卫生系统（含机关、卫监局、紧急救援、农卫站等） | B98: 3019 | C98: 1710 | D98: 48 | E98: 1662 | F98: 3 | G98: 1255 | I98: 51
A99: 其中：卫监局（全额） | B99: 33 | C99: 24 | D99: 14 | E99: 10 | G99: 9
A100: 其中：卫健局（全额） | B100: 138 | C100: 57 | D100: 32 | E100: 25 | G100: 77 | I100: 4
A101: 其中：紧急救援中心（全额） | B101: 14 | C101: 14 | D101: 2 | E101: 12
A102: 其中：农卫站（全额） | B102: 53 | C102: 48 | E102: 48 | G102: 5
A103: 其中：疾控中心（全额） | B103: 102 | C103: 59 | E103: 59 | G103: 43
A104: 沅江市计划生育协会 | B104: 6 | C104: 5 | D104: 5 | G104: 1
A105: 沅江市退役军人事务局 | B105: 7 | C105: 7 | D105: 7
A106: 沅江市光荣院 | B106: 11 | C106: 6 | E106: 6 | G106: 5
A107: 沅江市军队离休退休干部休养所 | B107: 12 | C107: 8 | E107: 8 | G107: 4
A108: 沅江市退役军人服务中心 | B108: 10 | C108: 10 | E108: 10
A109: 沅江市红十字会 | B109: 6 | C109: 6 | D109: 6
A110: 沅江市农业农村局 | B110: 348 | C110: 169 | D110: 41 | E110: 128 | F110: 1 | G110: 164 | I110: 14
A111: 沅江市农村经济经营服务站 | B111: 22 | C111: 11 | D111: 8 | E111: 3 | G111: 10 | I111: 1
A112: 益阳南洞庭湖自然保护区沅江市管理局 | B112: 86 | C112: 51 | D112: 8 | E112: 43 | F112: 1 | G112: 31 | I112: 3
A113: 沅江市库区移民事务中心 | B113: 23 | C113: 17 | D113: 17 | G113: 6
A114: 沅江市农机事务中心 | B114: 73 | C114: 25 | D114: 18 | E114: 7 | F114: 1 | G114: 38 | I114: 9
A115: 畜牧水产事务中心 | B115: 180 | C115: 75 | D115: 14 | E115: 61 | G115: 97 | I115: 8
A116: 沅江市农业综合行政执法大队 | B116: 109 | C116: 61 | D116: 11 | E116: 50 | G116: 41 | I116: 7
A117: 沅江市林业局 | B117: 128 | C117: 77 | D117: 36 | E117: 41 | G117: 46 | I117: 5
A118: 沅江市水利局 | B118: 174 | C118: 101 | D118: 30 | E118: 71 | G118: 64 | H118: 9
A119: 水管站 | B119: 1572 | C119: 185 | E119: 185 | G119: 687 | H119: 700
A120: 水利工程单位 | B120: 426 | C120: 139 | E120: 139 | G120: 191 | H120: 96
A121: 沅江市扶贫开发办公室 | B121: 11 | C121: 11 | D121: 9 | E121: 2
A122: 沅江市供销合作社联合社 | B122: 65 | C122: 9 | E122: 9 | G122: 26 | H122: 26 | I122: 4
A123: 琼湖街道办事处 | B123: 424 | C123: 187 | D123: 99 | E123: 88 | G123: 196 | H123: 27 | I123: 14
A124: 胭脂湖街道办事处 | B124: 226 | C124: 110 | D124: 61 | E124: 49 | G124: 81 | H124: 23 | I124: 12
A125: 新湾镇 | B125: 129 | C125: 70 | D125: 36 | E125: 34 | G125: 38 | H125: 8 | I125: 13
A126: 南嘴镇 | B126: 118 | C126: 65 | D126: 36 | E126: 29 | G126: 33 | H126: 12 | I126: 8
A127: 草尾镇 | B127: 270 | C127: 107 | D127: 54 | E127: 53 | G127: 107 | H127: 33 | I127: 23
A128: 黄茅洲镇 | B128: 223 | C128: 109 | D128: 58 | E128: 51 | G128: 70 | H128: 29 | I128: 15
A129: 阳罗洲镇 | B129: 169 | C129: 82 | D129: 44 | E129: 38 | G129: 56 | H129: 31 | I129: 0
A130: 四季红镇 | B130: 88 | C130: 65 | D130: 32 | E130: 33 | G130: 15 | H130: 5 | I130: 3
A131: 南大膳镇 | B131: 275 | C131: 114 | D131: 56 | E131: 58 | G131: 94 | H131: 39 | I131: 28
A132: 泗湖山镇 | B132: 214 | C132: 110 | D132: 52 | E132: 58 | G132: 78 | H132: 13 | I132: 13
A133: 共华镇 | B133: 237 | C133: 114 | D133: 54 | E133: 60 | G133: 83 | H133: 26 | I133: 14
A134: 茶盘洲镇 | B134: 124 | C134: 79 | D134: 36 | E134: 43 | G134: 43 | I134: 2

Sheet 表5-1
A1: 表5-1
A2: 2022年部门单位收入汇总表
A3: 单位：万元
A4: 单位 | C4: 总计 | D4: 本年收入
A5: 编码 | B5: 名称 | D5: 一般公共预算 | H5: 政府性基金预算
D6: 合计 | E6: 经费拨款 | F6: 纳入预算管理的非税收入 | G6: 上级补助
A7: 总计： | C7: 378,618.00 | D7: 303,233.00 | E7: =SUM(E8:E280) -> 286,293.09 | F7: =SUM(F8:F280) -> 14,330.15 | G7: 2,609.76 | H7: 75,385.00
A8: 101001 | B8: 沅江市人民代表大会常务委员会 | C8: =D8+H8 -> 717.14 | D8: =SUM(E8:G8) -> 717.14 | E8: 717.14
A9: 102001 | B9: 中国人民政治协商会议湖南省沅江市委员会 | C9: =D9+H9 -> 540.49 | D9: =SUM(E9:G9) -> 540.49 | E9: 540.49
A10: 103001 | B10: 中共沅江市委办公室 | C10: 612.49 | D10: 612.49 | E10: =610.492852+2 -> 612.49
A11: 103003 | B11: 沅江市史志编纂室 | C11: 83.15 | D11: 83.15 | E11: 83.15
A12: 104001 | B12: 沅江市人民政府办公室 | C12: 706.78 | D12: 706.78 | E12: =696.784258+10 -> 706.78
A13: 105001 | B13: 沅江市财政局 | C13: 1,680.40 | D13: 1,680.40 | E13: 1,520.40 | F13: 160.00
A14: 105002 | B14: 沅江市国库集中支付核算中心 | C14: 122.97 | D14: 122.97 | E14: 122.97
A15: 105003 | B15: 沅江市财政事务中心 | C15: 97.24 | D15: 97.24 | E15: 97.24
A16: 105004 | B16: 沅江市财政投资评审中心 | C16: 89.66 | D16: 89.66 | E16: 89.66
A17: 106001 | B17: 中共沅江市委机构编制委员会办公室 | C17: 118.90 | D17: 118.90 | E17: 118.90
A18: 107001 | B18: 沅江市统计局 | C18: 271.81 | D18: 271.81 | E18: 271.81
A19: 109001 | B19: 沅江市教育局 | C19: 3,279.50 | D19: 3,279.50 | E19: 3,279.50
A20: 109002 | B20: 沅江市第一中学 | C20: 3,640.35 | D20: 3,640.35 | E20: 3,640.35
A21: 109003 | B21: 沅江市第三中学 | C21: 2,189.90 | D21: 2,189.90 | E21: 2,189.90
A22: 109004 | B22: 沅江市琼湖书院 | C22: 2,340.15 | D22: 2,340.15 | E22: 2,340.15
A23: 109005 | B23: 沅江市第二中学 | C23: 1,257.79 | D23: 1,257.79 | E23: 1,257.79
A24: 109006 | B24: 沅江市第四中学 | C24: 1,139.55 | D24: 1,139.55 | E24: 1,139.55
A25: 109007 | B25: 沅江市职业中等专业学校 | C25: 2,216.33 | D25: 2,216.33 | E25: 2,216.33
A26: 109008 | B26: 沅江市城关职业高级中学 | C26: 303.24 | D26: 303.24 | E26: 303.24
A27: 109009 | B27: 沅江市教育局-机关 | C27: 2,430.85 | D27: 2,430.85 | E27: 2,430.85
A28: 109010 | B28: 沅江市阳罗洲镇初级中学 | C28: 576.24 | D28: 576.24 | E28: 576.24
A29: 109011 | B29: 沅江市阳罗洲镇普丰小学 | C29: 181.92 | D29: 181.92 | E29: 181.92
A30: 109012 | B30: 沅江市阳罗洲镇中心小学 | C30: 452.50 | D30: 452.50 | E30: 452.50
A31: 109013 | B31: 沅江市阳罗洲镇复兴学校 | C31: 182.09 | D31: 182.09 | E31: 182.09
A32: 109014 | B32: 沅江市阳罗洲镇宝三小学 | C32: 188.96 | D32: 188.96 | E32: 188.96
A33: 109015 | B33: 沅江市阳罗洲镇普丰学校 | C33: 357.39 | D33: 357.39 | E33: 357.39
A34: 109016 | B34: 沅江市阳罗洲镇兴界小学 | C34: 197.63 | D34: 197.63 | E34: 197.63
A35: 109017 | B35: 沅江市共华镇初级中学 | C35: 728.21 | D35: 728.21 | E35: 728.21
A36: 109018 | B36: 沅江市共华镇新华学校 | C36: 684.73 | D36: 684.73 | E36: 684.73
A37: 109019 | B37: 沅江市共华镇宪成小学 | C37: 215.62 | D37: 215.62 | E37: 215.62
A38: 109020 | B38: 沅江市共华镇中心小学 | C38: 609.07 | D38: 609.07 | E38: 609.07
A39: 109021 | B39: 沅江市共华镇白沙学校 | C39: 514.42 | D39: 514.42 | E39: 514.42
A40: 109022 | B40: 沅江市共华镇均和小学 | C40: 159.66 | D40: 159.66 | E40: 159.66
A41: 109024 | B41: 沅江市南嘴镇初级中学 | C41: 926.56 | D41: 926.56 | E41: 926.56
A42: 109025 | B42: 沅江市南嘴镇中心小学 | C42: 376.19 | D42: 376.19 | E42: 376.19
A43: 109026 | B43: 沅江市南嘴镇明月小学 | C43: 189.71 | D43: 189.71 | E43: 189.71
A44: 109027 | B44: 沅江市南嘴镇余家村小学 | C44: 172.89 | D44: 172.89 | E44: 172.89
A45: 109028 | B45: 沅江市南嘴镇羊婆小学 | C45: 255.24 | D45: 255.24 | E45: 255.24
A46: 109029 | B46: 沅江市南洞庭学校 | C46: 153.33 | D46: 153.33 | E46: 153.33
A47: 109030 | B47: 沅江市团山学校 | C47: 1,027.51 | D47: 1,027.51 | E47: 1,027.51
A48: 109031 | B48: 沅江市南洞庭实验学校 | C48: 1,537.57 | D48: 1,537.57 | E48: 1,537.57
A49: 109032 | B49: 沅江市保民学校 | C49: 351.47 | D49: 351.47 | E49: 351.47
A50: 109033 | B50: 沅江市城郊中心小学 | C50: 500.25 | D50: 500.25 | E50: 500.25
A51: 109034 | B51: 沅江市城郊白竹小学 | C51: 502.67 | D51: 502.67 | E51: 502.67
A52: 109035 | B52: 沅江市中心幼儿园 | C52: 261.82 | D52: 261.82 | E52: 261.82
A53: 109036 | B53: 沅江政通实验学校 | C53: 2,208.29 | D53: 2,208.29 | E53: 2,208.29
A54: 109037 | B54: 沅江市政通小学 | C54: 1,274.21 | D54: 1,274.21 | E54: 1,274.21
A55: 109038 | B55: 沅江市泗湖山镇初级中学 | C55: 811.75 | D55: 811.75 | E55: 811.75
A56: 109039 | B56: 沅江市泗湖山镇中心小学 | C56: 645.57 | D56: 645.57 | E56: 645.57
A57: 109040 | B57: 沅江市泗湖山镇华田学校 | C57: 350.56 | D57: 350.56 | E57: 350.56
A58: 109041 | B58: 沅江市泗湖山镇光复学校 | C58: 222.65 | D58: 222.65 | E58: 222.65
A59: 109042 | B59: 沅江市泗湖山镇洞庭红小学 | C59: 157.79 | D59: 157.79 | E59: 157.79
A60: 109043 | B60: 沅江市泗湖山镇净下洲小学 | C60: 122.70 | D60: 122.70 | E60: 122.70
A61: 109044 | B61: 沅江市泗湖山镇西华小学 | C61: 46.59 | D61: 46.59 | E61: 46.59
A62: 109046 | B62: 沅江市漉湖学校 | C62: 421.07 | D62: 421.07 | E62: 421.07
A63: 109047 | B63: 沅江市万子湖学校 | C63: 928.83 | D63: 928.83 | E63: 928.83
A64: 109048 | B64: 沅江市特殊教育学校 | C64: 265.93 | D64: 265.93 | E64: 265.93
A65: 109049 | B65: 沅江市琼湖初级中学 | C65: 2,770.30 | D65: 2,770.30 | E65: 2,770.30
A66: 109050 | B66: 沅江市凌云塔学校 | C66: 1,035.10 | D66: 1,035.10 | E66: 1,035.10
A67: 109051 | B67: 沅江市莲花塘学校 | C67: 1,110.66 | D67: 1,110.66 | E67: 1,110.66
A68: 109052 | B68: 沅江市桔园学校 | C68: 1,847.06 | D68: 1,847.06 | E68: 1,847.06
A69: 109054 | B69: 沅江市纸厂学校 | C69: 200.97 | D69: 200.97 | E69: 200.97
A70: 109056 | B70: 沅江市胭脂湖街道莲子塘学校 | C70: 697.36 | D70: 697.36 | E70: 697.36
A71: 109057 | B71: 沅江市胭脂湖街道南竹山学校 | C71: 549.24 | D71: 549.24 | E71: 549.24
A72: 109058 | B72: 沅江市胭脂湖街道初级中学 | C72: 1,230.36 | D72: 1,230.36 | E72: 1,230.36
A73: 109059 | B73: 沅江市胭脂湖街道杨梅山小学 | C73: =D73+H73 -> 231.84 | D73: =SUM(E73:G73) -> 231.84 | E73: 231.84
A74: 109060 | B74: 沅江市胭脂湖街道中心小学 | C74: 805.73 | D74: 805.73 | E74: 805.73
A75: 109061 | B75: 沅江市胭脂湖街道台公塘小学 | C75: 245.74 | D75: 245.74 | E75: 245.74
A76: 109062 | B76: 沅江市茶盘洲镇学校 | C76: 502.29 | D76: 502.29 | E76: 502.29
A77: 109063 | B77: 沅江市茶盘洲镇中心小学 | C77: 353.76 | D77: 353.76 | E77: 353.76
A78: 109064 | B78: 沅江市教师进修学校 | C78: 509.67 | D78: 509.67 | E78: 509.67
A79: 109065 | B79: 沅江市青少年学生校外活动中心 | C79: 169.41 | D79: 169.41 | E79: 169.41
A80: 109066 | B80: 沅江市四季红镇初级中学 | C80: 659.78 | D80: 659.78 | E80: 659.78
A81: 109067 | B81: 沅江市四季红镇中心小学 | C81: 170.88 | D81: 170.88 | E81: 170.88
A82: 109068 | B82: 沅江市四季红镇小学 | C82: 127.87 | D82: 127.87 | E82: 127.87
A83: 109069 | B83: 沅江市四季红镇四季红小学 | C83: 93.46 | D83: 93.46 | E83: 93.46
A84: 109070 | B84: 沅江市四季红镇长征小学 | C84: 110.91 | D84: 110.91 | E84: 110.91
A85: 109071 | B85: 沅江市新湾镇初级中学 | C85: 640.68 | D85: 640.68 | E85: 640.68
A86: 109072 | B86: 沅江市新湾镇杨阁老学校 | C86: 849.65 | D86: 849.65 | E86: 849.65
A87: 109073 | B87: 沅江市新湾镇中心小学 | C87: 586.07 | D87: 586.07 | E87: 586.07
A88: 109074 | B88: 沅江市新湾镇葵花小学 | C88: 247.83 | D88: 247.83 | E88: 247.83
A89: 109075 | B89: 沅江市黄茅洲镇塞波嘴初级中学 | C89: 738.53 | D89: 738.53 | E89: 738.53
A90: 109076 | B90: 沅江市黄茅洲镇大成学校 | C90: 348.67 | D90: 348.67 | E90: 348.67
A91: 109077 | B91: 沅江市黄茅洲镇金南学校 | C91: 291.07 | D91: 291.07 | E91: 291.07
A92: 109078 | B92: 沅江市黄茅洲镇柳树坪学校 | C92: 161.37 | D92: 161.37 | E92: 161.37
A93: 109079 | B93: 沅江市黄茅洲镇中心小学 | C93: 475.57 | D93: 475.57 | E93: 475.57
A94: 109080 | B94: 沅江市黄茅洲镇子母城小学 | C94: 170.59 | D94: 170.59 | E94: 170.59
A95: 109081 | B95: 沅江市黄茅洲镇志成小学 | C95: 174.68 | D95: 174.68 | E95: 174.68
A96: 109082 | B96: 沅江市黄茅洲镇红旗小学 | C96: 262.03 | D96: 262.03 | E96: 262.03
A97: 109084 | B97: 沅江市黄茅洲镇民丰小学 | C97: 107.69 | D97: 107.69 | E97: 107.69
A98: 109086 | B98: 沅江市南大膳镇晓乐小学 | C98: 155.15 | D98: 155.15 | E98: 155.15
A99: 109087 | B99: 沅江市南大膳镇中心小学 | C99: 975.29 | D99: 975.29 | E99: 975.29
A100: 109088 | B100: 沅江市南大膳镇北大学校 | C100: 450.64 | D100: 450.64 | E100: 450.64
A101: 109090 | B101: 沅江市南大膳镇南京小学 | C101: 122.90 | D101: 122.90 | E101: 122.90
A102: 109091 | B102: 沅江市南大膳镇学校坪小学 | C102: 117.70 | D102: 117.70 | E102: 117.70
A103: 109092 | B103: 沅江市南大膳镇灵官小学 | C103: 146.24 | D103: 146.24 | E103: 146.24
A104: 109093 | B104: 沅江市南大膳镇小波学校 | C104: 396.41 | D104: 396.41 | E104: 396.41
A105: 109094 | B105: 沅江市南大膳镇双丰小学 | C105: 144.08 | D105: 144.08 | E105: 144.08
A106: 109095 | B106: 沅江市南大膳镇石剅小学 | C106: 112.09 | D106: 112.09 | E106: 112.09
A107: 109096 | B107: 沅江市南大膳镇永交小学 | C107: 139.77 | D107: 139.77 | E107: 139.77
A108: 109097 | B108: 沅江市南大膳镇北大市小学 | C108: 97.25 | D108: 97.25 | E108: 97.25
A109: 109098 | B109: 沅江市草尾镇人和学校 | C109: 353.59 | D109: 353.59 | E109: 353.59
A110: 109099 | B110: 沅江市草尾镇学校 | C110: 931.09 | D110: 931.09 | E110: 931.09
A111: 109100 | B111: 沅江市草尾镇大同小学 | C111: 232.90 | D111: 232.90 | E111: 232.90
A112: 109102 | B112: 沅江市草尾镇新安学校 | C112: 643.35 | D112: 643.35 | E112: 643.35
A113: 109103 | B113: 沅江市草尾镇上码头学校 | C113: 547.31 | D113: 547.31 | E113: 547.31
A114: 109104 | B114: 沅江市芙蓉学校 | C114: 681.53 | D114: 681.53 | E114: 681.53
A115: 109105 | B115: 沅江市新湾镇中心校幼儿园 | C115: 161.51 | D115: 161.51 | E115: 161.51
A116: 109106 | B116: 沅江市共华镇中心校幼儿园 | C116: 31.55 | D116: 31.55 | E116: 31.55
A117: 109107 | B117: 沅江市四季红镇中心幼儿园 | C117: 38.38 | D117: 38.38 | E117: 38.38
A118: 109108 | B118: 沅江市黄茅洲镇中心幼儿园 | C118: 113.05 | D118: 113.05 | E118: 113.05
A119: 109109 | B119: 沅江市泗湖山镇中心校幼儿园 | C119: 12.30 | D119: 12.30 | E119: 12.30
A120: 109110 | B120: 沅江市茶盘洲镇中心校幼儿园 | C120: 48.31 | D120: 48.31 | E120: 48.31
A121: 109111 | B121: 沅江市草尾镇中心校幼儿园 | C121: 108.52 | D121: 108.52 | E121: 108.52
A122: 109112 | B122: 沅江市阳罗洲镇希望幼儿园 | C122: 76.41 | D122: 76.41 | E122: 76.41
A123: 109113 | B123: 沅江市城郊中心校幼儿园 | C123: 187.61 | D123: 187.61 | E123: 187.61
A124: 109114 | B124: 沅江市南洞庭芦苇场中心幼儿园 | C124: 15.41 | D124: 15.41 | E124: 15.41
A125: 109115 | B125: 沅江市漉湖芦苇场中心幼儿园 | C125: 29.39 | D125: 29.39 | E125: 29.39
A126: 109116 | B126: 沅江市琼湖街道碧桂园幼儿园 | C126: 28.05 | D126: 28.05 | E126: 28.05
A127: 109117 | B127: 沅江市南大膳镇中心幼儿园 | C127: 81.21 | D127: 81.21 | E127: 81.21
A128: 109118 | B128: 沅江市胭脂湖街道竹莲幼儿园 | C128: 91.12 | D128: 91.12 | E128: 91.12
A129: 109119 | B129: 沅江市黄茅洲镇金南幼儿园 | C129: 117.64 | D129: 117.64 | E129: 117.64
A130: 111001 | B130: 沅江市公安局交通警察大队 | C130: 2,184.93 | D130: 2,184.93 | E130: 2,088.93 | G130: 96.00
A131: 112001 | B131: 沅江市审计局 | C131: 458.51 | D131: 458.51 | E131: 458.51
A132: 114001 | B132: 沅江市文学艺术界联合会 | C132: 55.05 | D132: 55.05 | E132: 55.05
A133: 115001 | B133: 沅江市融媒体中心 | C133: 1,348.93 | D133: 1,348.93 | E133: 1,348.93
A134: 116001 | B134: 沅江市档案馆 | C134: 216.44 | D134: 216.44 | E134: 216.44
A135: 118002 | B135: 沅江市文化广电新闻出版局-机关 | C135: 378.49 | D135: 378.49 | E135: 287.69 | F135: 90.80
A136: 118003 | B136: 沅江市文化馆 | C136: 189.10 | D136: 189.10 | E136: 189.10
A137: 118003 | B137: 沅江市文化馆（沅江市非物质文化遗产保护中心） | C137: =D137+H137 -> 10.00 | D137: =SUM(E137:G137) -> 10.00 | E137: 10.00
A138: 118004 | B138: 沅江市图书馆 | C138: 207.30 | D138: 207.30 | E138: 207.30
A139: 118005 | B139: 沅江市洞庭博物馆 | C139: 84.53 | D139: 84.53 | E139: 84.53
A140: 118006 | B140: 沅江市文化市场综合行政执法大队 | C140: 268.32 | D140: 268.32 | E140: 249.32 | F140: 19.00
A141: 118007 | B141: 沅江市全民健身服务中心 | C141: 178.02 | D141: 178.02 | E141: 178.02
A142: 121001 | B142: 沅江市行政审批服务局 | C142: 665.15 | D142: 665.15 | E142: 665.15
A143: 124001 | B143: 沅江市机关事务服务中心 | C143: 140.98 | D143: 140.98 | E143: 134.98 | F143: 6.00
A144: 125001 | B144: 中共沅江市委宣传部 | C144: 221.96 | D144: 221.96 | E144: 205.96 | F144: 16.00
A145: 126001 | B145: 沅江市妇女联合会 | C145: 142.79 | D145: 142.79 | E145: 142.79
A146: 127001 | B146: 中国共产主义共青团沅江市委员会 | C146: 98.09 | D146: 98.09 | E146: 98.09
A147: 129001 | B147: 湖南省沅江市工商业联合会 | C147: 96.92 | D147: 96.92 | E147: 96.92
A148: 130001 | B148: 中共沅江市委政法委 | C148: 308.68 | D148: 308.68 | E148: =303.680993+5 -> 308.68
A149: 131001 | B149: 中共沅江市委统一战线工作部 | C149: 269.16 | D149: 269.16 | E149: =264.96067+4.2 -> 269.16
A150: 134001 | B150: 沅江市司法局 | C150: 1,160.18 | D150: 1,160.18 | E150: 1,160.18
A151: 134002 | B151: 沅江市法律援助中心 | C151: 117.73 | D151: 117.73 | E151: 117.73
A152: 138001 | B152: 中共沅江市委党校 | C152: 447.41 | D152: 447.41 | E152: 442.41 | F152: 5.00
A153: 139001 | B153: 沅江市信访局 | C153: 206.05 | D153: 206.05 | E153: 206.05
A154: 140001 | B154: 中共沅江市委组织部 | C154: 649.14 | D154: 649.14 | E154: 649.14
A155: 140002 | B155: 沅江市老干部休养活动中心 | C155: 152.64 | D155: 152.64 | E155: 152.64
A156: 142001 | B156: 沅江市公安局 | C156: 6,920.48 | D156: 6,920.48 | E156: 6,410.68 | G156: 509.80
A157: 142002 | B157: 沅江市看守所 | C157: 517.60 | D157: 517.60 | E157: 497.60 | F157: =15+5 -> 20.00
A158: 142003 | B158: 沅江市拘留所 | C158: 238.52 | D158: 238.52 | E158: 238.52
A159: 143001 | B159: 中国共产党沅江市纪律检查委员会 | C159: 1,520.20 | D159: 1,520.20 | E159: 1,320.20 | F159: 200.00
A160: 147001 | B160: 沅江市总工会 | C160: 388.62 | D160: 388.62 | E160: 388.62
A161: 149001 | B161: 沅江市市场监督管理局 | C161: 3,333.08 | D161: 3,333.08 | E161: 2,633.08 | F161: 700.00
A162: 157001 | B162: 中共沅江市委巡察工作领导小组办公室 | C162: 232.76 | D162: 232.76 | E162: 232.76
A163: 158001 | B163: 中共沅江市委网络安全和信息化委员会办公室 | C163: 103.59 | D163: 103.59 | E163: 103.59
A164: 201001 | B164: 沅江市医疗保障局 | C164: 581.51 | D164: 581.51 | E164: 581.51
A165: 202001 | B165: 沅江市人力资源和社会保障局 | C165: 539.28 | D165: 539.28 | E165: 539.28
A166: 202002 | B166: 沅江市工伤保险服务中心 | C166: 116.77 | D166: 116.77 | E166: 116.77
A167: 202003 | B167: 沅江市就业服务管理局 | C167: 210.02 | D167: 210.02 | E167: 210.02
A168: 202004 | B168: 沅江市社会保险服务中心 | C168: 475.97 | D168: 475.97 | E168: 475.97
A169: 202005 | B169: 沅江市劳动监察局 | C169: 101.59 | D169: 101.59 | E169: 101.59
A170: 204001 | B170: 沅江市卫生健康局 | C170: 4,185.48 | D170: 4,185.48 | E170: 1,961.48 | F170: 2,224.00
A171: 204003 | B171: 沅江市卫生健康综合监督执法局 | C171: 219.22 | D171: 219.22 | E171: 219.22
A172: 204004 | B172: 沅江市卫生健康局机关 | C172: 628.54 | D172: 628.54 | E172: 628.54
A173: 204005 | B173: 沅江市紧急医疗救援指挥中心 | C173: 137.15 | D173: 137.15 | E173: 137.15
A174: 204006 | B174: 沅江市疾病预防控制中心 | C174: 626.02 | D174: 626.02 | E174: 626.02
A175: 204007 | B175: 沅江市妇幼保健院 | C175: 364.66 | D175: 364.66 | E175: 364.66
A176: 204008 | B176: 沅江市人民医院 | C176: 505.94 | D176: 505.94 | E176: 505.94
A177: 204009 | B177: 沅江市中医医院 | C177: 205.10 | D177: 205.10 | E177: 205.10
A178: 204010 | B178: 沅江市琼湖街道第一社区卫生服务中心 | C178: 64.23 | D178: 64.23 | E178: 64.23
A179: 204011 | B179: 沅江市胭脂湖街道社区卫生服务中心 | C179: 76.53 | D179: 76.53 | E179: 76.53
A180: 204012 | B180: 沅江市新湾镇卫生院 | C180: 40.36 | D180: 40.36 | E180: 40.36
A181: 204013 | B181: 沅江市黄茅洲镇中心卫生院 | C181: 180.88 | D181: 180.88 | E181: 180.88
A182: 204014 | B182: 沅江市草尾镇中心卫生院 | C182: 173.31 | D182: 173.31 | E182: 173.31
A183: 204015 | B183: 沅江市阳罗洲镇中心卫生院 | C183: 68.95 | D183: 68.95 | E183: 68.95
A184: 204016 | B184: 沅江市共华镇卫生院 | C184: 57.56 | D184: 57.56 | E184: 57.56
A185: 204017 | B185: 沅江市泗湖山镇中心卫生院 | C185: 72.67 | D185: 72.67 | E185: 72.67
A186: 204018 | B186: 沅江市南大膳镇中心卫生院 | C186: 115.68 | D186: 115.68 | E186: 115.68
A187: 204019 | B187: 沅江市琼湖街道第三社区卫生服务中心 | C187: 13.22 | D187: 13.22 | E187: 13.22
A188: 204020 | B188: 沅江市南嘴镇卫生院 | C188: 11.76 | D188: 11.76 | E188: 11.76
A189: 204021 | B189: 沅江市茶盘洲镇卫生院 | C189: 85.96 | D189: 85.96 | E189: 85.96
A190: 204022 | B190: 沅江市四季红镇卫生院 | C190: 5.47 | D190: 5.47 | E190: 5.47
A191: 204023 | B191: 沅江市血吸虫病专科医院 | C191: 287.18 | D191: 287.18 | E191: 287.18
A192: 204024 | B192: 沅江市南大血吸虫病防治站 | C192: 89.33 | D192: 89.33 | E192: 89.33
A193: 204025 | B193: 沅江市草尾血吸血虫病预防控制站 | C193: 93.74 | D193: 93.74 | E193: 93.74
A194: 204026 | B194: 沅江市黄茅洲血吸虫病预防控制站 | C194: 57.26 | D194: 57.26 | E194: 57.26
A195: 204027 | B195: 沅江市阳罗血吸虫病预防控制站 | C195: 93.73 | D195: 93.73 | E195: 93.73
A196: 204028 | B196: 沅江市共华血吸虫病防治站 | C196: 64.59 | D196: 64.59 | E196: 64.59
A197: 204029 | B197: 沅江市泗湖山血吸虫病防治站 | C197: 42.07 | D197: 42.07 | E197: 42.07
A198: 204030 | B198: 沅江市胭脂湖血吸虫病预防控制站 | C198: 65.59 | D198: 65.59 | E198: 65.59
A199: 204031 | B199: 沅江市赤山血吸虫病预防控制站 | C199: 84.03 | D199: 84.03 | E199: 84.03
A200: 204032 | B200: 沅江市漉湖血吸虫病预防控制站 | C200: 54.44 | D200: 54.44 | E200: 54.44
... 80 more rows

Sheet 表5-2
A1: 表5-2
A2: 2022年部门单位支出汇总表
A3: 单位：万元
A4: 单位 | C4: 总计 | D4: 基本支出 | G4: 项目支出
A5: 编码 | B5: 名称 | D5: 合计 | E5: 人员类 | F5: 公用经费
A6: 总计: | C6: =SUM(C7:C354)/2 -> 378,618.00 | D6: =SUM(D7:D354)/2 -> 127,595.54 | E6: =SUM(E7:E354)/2 -> 119,805.94 | F6: =SUM(F7:F354)/2 -> 7,789.60 | G6: =SUM(G7:G354)/2 -> 251,022.46
A7: 101_沅江市人民代表大会常务委员会 | C7: =D7+G7 -> 717.14 | D7: 561.14 | E7: 515.14 | F7: 46.00 | G7: 156.00
A8: 101001 | B8: 沅江市人民代表大会常务委员会 | C8: 717.14 | D8: 561.14 | E8: 515.14 | F8: 46.00 | G8: 156.00
A9: 102_中国人民政治协商会议湖南省沅江市委员会 | C9: 540.49 | D9: 434.49 | E9: 397.49 | F9: 37.00 | G9: 106.00
A10: 102001 | B10: 中国人民政治协商会议湖南省沅江市委员会 | C10: 540.49 | D10: 434.49 | E10: 397.49 | F10: 37.00 | G10: 106.00
A11: 103_中共沅江市委办公室 | C11: 695.64 | D11: 414.64 | E11: 372.64 | F11: 42.00 | G11: 281.00
A12: 103001 | B12: 中共沅江市委办公室 | C12: 612.49 | D12: 385.49 | E12: 346.49 | F12: 39.00 | G12: =225+2 -> 227.00
A13: 103003 | B13: 沅江市史志编纂室 | C13: 83.15 | D13: 29.15 | E13: 26.15 | F13: 3.00 | G13: 54.00
A14: 104_沅江市人民政府办公室 | C14: 706.78 | D14: 537.68 | E14: 489.68 | F14: 48.00 | G14: 169.10
A15: 104001 | B15: 沅江市人民政府办公室 | C15: 706.78 | D15: 537.68 | E15: 489.68 | F15: 48.00 | G15: =159.1+10 -> 169.10
A16: 105_沅江市财政局 | C16: 1,990.27 | D16: 1,428.77 | E16: 1,287.77 | F16: 141.00 | G16: 561.50
A17: 105001 | B17: 沅江市财政局 | C17: 1,680.40 | D17: 1,162.90 | E17: 1,049.90 | F17: 113.00 | G17: 517.50
A18: 105002 | B18: 沅江市国库集中支付核算中心 | C18: 122.97 | D18: 78.97 | E18: 70.97 | F18: 8.00 | G18: 44.00
A19: 105003 | B19: 沅江市财政事务中心 | C19: 97.24 | D19: 97.24 | E19: 87.24 | F19: 10.00
A20: 105004 | B20: 沅江市财政投资评审中心 | C20: 89.66 | D20: 89.66 | E20: 79.66 | F20: 10.00
A21: 106_中共沅江市委机构编制委员会办公室 | C21: 118.90 | D21: 86.90 | E21: 77.90 | F21: 9.00 | G21: 32.00
A22: 106001 | B22: 中共沅江市委机构编制委员会办公室 | C22: 118.90 | D22: 86.90 | E22: 77.90 | F22: 9.00 | G22: 32.00
A23: 107_沅江市统计局 | C23: 271.81 | D23: 205.81 | E23: 185.81 | F23: 20.00 | G23: 66.00
A24: 107001 | B24: 沅江市统计局 | C24: 271.81 | D24: 205.81 | E24: 185.81 | F24: 20.00 | G24: 66.00
A25: 109_沅江市教育局 | C25: 63,421.82 | D25: 60,142.32 | E25: 59,922.32 | F25: 220.00 | G25: 3,279.50
A26: 109002 | B26: 沅江市第一中学 | C26: 3,640.35 | D26: 3,640.35 | E26: 3,640.35
A27: 109003 | B27: 沅江市第三中学 | C27: 2,189.90 | D27: 2,189.90 | E27: 2,189.90
A28: 109004 | B28: 沅江市琼湖书院 | C28: 2,340.15 | D28: 2,340.15 | E28: 2,340.15
A29: 109005 | B29: 沅江市第二中学 | C29: 1,257.79 | D29: 1,257.79 | E29: 1,257.79
A30: 109006 | B30: 沅江市第四中学 | C30: 1,139.55 | D30: 1,139.55 | E30: 1,139.55
A31: 109007 | B31: 沅江市职业中等专业学校 | C31: 2,216.33 | D31: 2,216.33 | E31: 2,216.33
A32: 109008 | B32: 沅江市城关职业高级中学 | C32: 303.24 | D32: 303.24 | E32: 303.24
A33: 109009 | B33: 沅江市教育局-机关 | C33: 2,430.85 | D33: 2,430.85 | E33: 2,261.85 | F33: 169.00
A34: 109010 | B34: 沅江市阳罗洲镇初级中学 | C34: 576.24 | D34: 576.24 | E34: 576.24
A35: 109011 | B35: 沅江市阳罗洲镇普丰小学 | C35: 181.92 | D35: 181.92 | E35: 181.92
A36: 109012 | B36: 沅江市阳罗洲镇中心小学 | C36: 452.50 | D36: 452.50 | E36: 452.50
A37: 109013 | B37: 沅江市阳罗洲镇复兴学校 | C37: 182.09 | D37: 182.09 | E37: 182.09
A38: 109014 | B38: 沅江市阳罗洲镇宝三小学 | C38: 188.96 | D38: 188.96 | E38: 188.96
A39: 109015 | B39: 沅江市阳罗洲镇普丰学校 | C39: 357.39 | D39: 357.39 | E39: 357.39
A40: 109016 | B40: 沅江市阳罗洲镇兴界小学 | C40: 197.63 | D40: 197.63 | E40: 197.63
A41: 109017 | B41: 沅江市共华镇初级中学 | C41: 728.21 | D41: 728.21 | E41: 728.21
A42: 109018 | B42: 沅江市共华镇新华学校 | C42: 684.73 | D42: 684.73 | E42: 684.73
A43: 109019 | B43: 沅江市共华镇宪成小学 | C43: 215.62 | D43: 215.62 | E43: 215.62
A44: 109020 | B44: 沅江市共华镇中心小学 | C44: 609.07 | D44: 609.07 | E44: 609.07
A45: 109021 | B45: 沅江市共华镇白沙学校 | C45: 514.42 | D45: 514.42 | E45: 514.42
A46: 109022 | B46: 沅江市共华镇均和小学 | C46: 159.66 | D46: 159.66 | E46: 159.66
A47: 109024 | B47: 沅江市南嘴镇初级中学 | C47: 926.56 | D47: 926.56 | E47: 926.56
A48: 109025 | B48: 沅江市南嘴镇中心小学 | C48: 376.19 | D48: 376.19 | E48: 376.19
A49: 109026 | B49: 沅江市南嘴镇明月小学 | C49: 189.71 | D49: 189.71 | E49: 189.71
A50: 109027 | B50: 沅江市南嘴镇余家村小学 | C50: 172.89 | D50: 172.89 | E50: 172.89
A51: 109028 | B51: 沅江市南嘴镇羊婆小学 | C51: 255.24 | D51: 255.24 | E51: 255.24
A52: 109029 | B52: 沅江市南洞庭学校 | C52: 153.33 | D52: 153.33 | E52: 153.33
A53: 109030 | B53: 沅江市团山学校 | C53: 1,027.51 | D53: 1,027.51 | E53: 1,027.51
A54: 109031 | B54: 沅江市南洞庭实验学校 | C54: 1,537.57 | D54: 1,537.57 | E54: 1,537.57
A55: 109032 | B55: 沅江市保民学校 | C55: 351.47 | D55: 351.47 | E55: 351.47
A56: 109033 | B56: 沅江市城郊中心小学 | C56: 500.25 | D56: 500.25 | E56: 500.25
A57: 109034 | B57: 沅江市城郊白竹小学 | C57: 502.67 | D57: 502.67 | E57: 502.67
A58: 109035 | B58: 沅江市中心幼儿园 | C58: 261.82 | D58: 261.82 | E58: 261.82
A59: 109036 | B59: 沅江政通实验学校 | C59: 2,208.29 | D59: 2,208.29 | E59: 2,208.29
A60: 109037 | B60: 沅江市政通小学 | C60: 1,274.21 | D60: 1,274.21 | E60: 1,274.21
A61: 109038 | B61: 沅江市泗湖山镇初级中学 | C61: 811.75 | D61: 811.75 | E61: 811.75
A62: 109039 | B62: 沅江市泗湖山镇中心小学 | C62: 645.57 | D62: 645.57 | E62: 645.57
A63: 109040 | B63: 沅江市泗湖山镇华田学校 | C63: 350.56 | D63: 350.56 | E63: 350.56
A64: 109041 | B64: 沅江市泗湖山镇光复学校 | C64: 222.65 | D64: 222.65 | E64: 222.65
A65: 109042 | B65: 沅江市泗湖山镇洞庭红小学 | C65: 157.79 | D65: 157.79 | E65: 157.79
A66: 109043 | B66: 沅江市泗湖山镇净下洲小学 | C66: 122.70 | D66: 122.70 | E66: 122.70
A67: 109044 | B67: 沅江市泗湖山镇西华小学 | C67: 46.59 | D67: 46.59 | E67: 46.59
A68: 109046 | B68: 沅江市漉湖学校 | C68: 421.07 | D68: 421.07 | E68: 421.07
A69: 109047 | B69: 沅江市万子湖学校 | C69: 928.83 | D69: 928.83 | E69: 928.83
A70: 109048 | B70: 沅江市特殊教育学校 | C70: 265.93 | D70: 265.93 | E70: 265.93
A71: 109049 | B71: 沅江市琼湖初级中学 | C71: =D71+G71 -> 2,770.30 | D71: 2,770.30 | E71: 2,770.30
A72: 109050 | B72: 沅江市凌云塔学校 | C72: 1,035.10 | D72: 1,035.10 | E72: 1,035.10
A73: 109051 | B73: 沅江市莲花塘学校 | C73: 1,110.66 | D73: 1,110.66 | E73: 1,110.66
A74: 109052 | B74: 沅江市桔园学校 | C74: 1,847.06 | D74: 1,847.06 | E74: 1,847.06
A75: 109054 | B75: 沅江市纸厂学校 | C75: 200.97 | D75: 200.97 | E75: 200.97
A76: 109056 | B76: 沅江市胭脂湖街道莲子塘学校 | C76: 697.36 | D76: 697.36 | E76: 697.36
A77: 109057 | B77: 沅江市胭脂湖街道南竹山学校 | C77: 549.24 | D77: 549.24 | E77: 549.24
A78: 109058 | B78: 沅江市胭脂湖街道初级中学 | C78: 1,230.36 | D78: 1,230.36 | E78: 1,230.36
A79: 109059 | B79: 沅江市胭脂湖街道杨梅山小学 | C79: 231.84 | D79: 231.84 | E79: 231.84
A80: 109060 | B80: 沅江市胭脂湖街道中心小学 | C80: 805.73 | D80: 805.73 | E80: 805.73
A81: 109061 | B81: 沅江市胭脂湖街道台公塘小学 | C81: 245.74 | D81: 245.74 | E81: 245.74
A82: 109062 | B82: 沅江市茶盘洲镇学校 | C82: 502.29 | D82: 502.29 | E82: 502.29
A83: 109063 | B83: 沅江市茶盘洲镇中心小学 | C83: 353.76 | D83: 353.76 | E83: 353.76
A84: 109064 | B84: 沅江市教师进修学校 | C84: 509.67 | D84: 509.67 | E84: 472.67 | F84: 37.00
A85: 109065 | B85: 沅江市青少年学生校外活动中心 | C85: 169.41 | D85: 169.41 | E85: 155.41 | F85: 14.00
A86: 109066 | B86: 沅江市四季红镇初级中学 | C86: 659.78 | D86: 659.78 | E86: 659.78
A87: 109067 | B87: 沅江市四季红镇中心小学 | C87: 170.88 | D87: 170.88 | E87: 170.88
A88: 109068 | B88: 沅江市四季红镇小学 | C88: 127.87 | D88: 127.87 | E88: 127.87
A89: 109069 | B89: 沅江市四季红镇四季红小学 | C89: 93.46 | D89: 93.46 | E89: 93.46
A90: 109070 | B90: 沅江市四季红镇长征小学 | C90: 110.91 | D90: 110.91 | E90: 110.91
A91: 109071 | B91: 沅江市新湾镇初级中学 | C91: 640.68 | D91: 640.68 | E91: 640.68
A92: 109072 | B92: 沅江市新湾镇杨阁老学校 | C92: 849.65 | D92: 849.65 | E92: 849.65
A93: 109073 | B93: 沅江市新湾镇中心小学 | C93: 586.07 | D93: 586.07 | E93: 586.07
A94: 109074 | B94: 沅江市新湾镇葵花小学 | C94: 247.83 | D94: 247.83 | E94: 247.83
A95: 109075 | B95: 沅江市黄茅洲镇塞波嘴初级中学 | C95: 738.53 | D95: 738.53 | E95: 738.53
A96: 109076 | B96: 沅江市黄茅洲镇大成学校 | C96: 348.67 | D96: 348.67 | E96: 348.67
A97: 109077 | B97: 沅江市黄茅洲镇金南学校 | C97: 291.07 | D97: 291.07 | E97: 291.07
A98: 109078 | B98: 沅江市黄茅洲镇柳树坪学校 | C98: 161.37 | D98: 161.37 | E98: 161.37
A99: 109079 | B99: 沅江市黄茅洲镇中心小学 | C99: 475.57 | D99: 475.57 | E99: 475.57
A100: 109080 | B100: 沅江市黄茅洲镇子母城小学 | C100: 170.59 | D100: 170.59 | E100: 170.59
A101: 109081 | B101: 沅江市黄茅洲镇志成小学 | C101: 174.68 | D101: 174.68 | E101: 174.68
A102: 109082 | B102: 沅江市黄茅洲镇红旗小学 | C102: 262.03 | D102: 262.03 | E102: 262.03
A103: 109084 | B103: 沅江市黄茅洲镇民丰小学 | C103: 107.69 | D103: 107.69 | E103: 107.69
A104: 109086 | B104: 沅江市南大膳镇晓乐小学 | C104: 155.15 | D104: 155.15 | E104: 155.15
A105: 109087 | B105: 沅江市南大膳镇中心小学 | C105: 975.29 | D105: 975.29 | E105: 975.29
A106: 109088 | B106: 沅江市南大膳镇北大学校 | C106: 450.64 | D106: 450.64 | E106: 450.64
A107: 109090 | B107: 沅江市南大膳镇南京小学 | C107: 122.90 | D107: 122.90 | E107: 122.90
A108: 109091 | B108: 沅江市南大膳镇学校坪小学 | C108: 117.70 | D108: 117.70 | E108: 117.70
A109: 109092 | B109: 沅江市南大膳镇灵官小学 | C109: 146.24 | D109: 146.24 | E109: 146.24
A110: 109093 | B110: 沅江市南大膳镇小波学校 | C110: 396.41 | D110: 396.41 | E110: 396.41
A111: 109094 | B111: 沅江市南大膳镇双丰小学 | C111: 144.08 | D111: 144.08 | E111: 144.08
A112: 109095 | B112: 沅江市南大膳镇石剅小学 | C112: 112.09 | D112: 112.09 | E112: 112.09
A113: 109096 | B113: 沅江市南大膳镇永交小学 | C113: 139.77 | D113: 139.77 | E113: 139.77
A114: 109097 | B114: 沅江市南大膳镇北大市小学 | C114: 97.25 | D114: 97.25 | E114: 97.25
A115: 109098 | B115: 沅江市草尾镇人和学校 | C115: 353.59 | D115: 353.59 | E115: 353.59
A116: 109099 | B116: 沅江市草尾镇学校 | C116: 931.09 | D116: 931.09 | E116: 931.09
A117: 109100 | B117: 沅江市草尾镇大同小学 | C117: 232.90 | D117: 232.90 | E117: 232.90
A118: 109102 | B118: 沅江市草尾镇新安学校 | C118: 643.35 | D118: 643.35 | E118: 643.35
A119: 109103 | B119: 沅江市草尾镇上码头学校 | C119: 547.31 | D119: 547.31 | E119: 547.31
A120: 109104 | B120: 沅江市芙蓉学校 | C120: 681.53 | D120: 681.53 | E120: 681.53
A121: 109105 | B121: 沅江市新湾镇中心校幼儿园 | C121: 161.51 | D121: 161.51 | E121: 161.51
A122: 109106 | B122: 沅江市共华镇中心校幼儿园 | C122: 31.55 | D122: 31.55 | E122: 31.55
A123: 109107 | B123: 沅江市四季红镇中心幼儿园 | C123: 38.38 | D123: 38.38 | E123: 38.38
A124: 109108 | B124: 沅江市黄茅洲镇中心幼儿园 | C124: 113.05 | D124: 113.05 | E124: 113.05
A125: 109109 | B125: 沅江市泗湖山镇中心校幼儿园 | C125: 12.30 | D125: 12.30 | E125: 12.30
A126: 109110 | B126: 沅江市茶盘洲镇中心校幼儿园 | C126: 48.31 | D126: 48.31 | E126: 48.31
A127: 109111 | B127: 沅江市草尾镇中心校幼儿园 | C127: 108.52 | D127: 108.52 | E127: 108.52
A128: 109112 | B128: 沅江市阳罗洲镇希望幼儿园 | C128: 76.41 | D128: 76.41 | E128: 76.41
A129: 109113 | B129: 沅江市城郊中心校幼儿园 | C129: 187.61 | D129: 187.61 | E129: 187.61
A130: 109114 | B130: 沅江市南洞庭芦苇场中心幼儿园 | C130: 15.41 | D130: 15.41 | E130: 15.41
A131: 109115 | B131: 沅江市漉湖芦苇场中心幼儿园 | C131: 29.39 | D131: 29.39 | E131: 29.39
A132: 109116 | B132: 沅江市琼湖街道碧桂园幼儿园 | C132: 28.05 | D132: 28.05 | E132: 28.05
A133: 109117 | B133: 沅江市南大膳镇中心幼儿园 | C133: 81.21 | D133: 81.21 | E133: 81.21
A134: 109118 | B134: 沅江市胭脂湖街道竹莲幼儿园 | C134: 91.12 | D134: 91.12 | E134: 91.12
A135: 109119 | B135: 沅江市黄茅洲镇金南幼儿园 | C135: =D135+G135 -> 117.64 | D135: 117.64 | E135: 117.64
A136: 109001 | B136: 沅江市教育局 | C136: 3,279.50 | G136: 3,279.50
A137: 111_沅江市公安局交通警察大队 | C137: 2,184.93 | D137: 1,068.53 | E137: 897.53 | F137: 171.00 | G137: 1,116.40
A138: 111001 | B138: 沅江市公安局交通警察大队 | C138: 2,184.93 | D138: 1,068.53 | E138: 897.53 | F138: 171.00 | G138: 1,116.40
A139: 112_沅江市审计局 | C139: 458.51 | D139: 372.51 | E139: 298.91 | F139: 73.60 | G139: 86.00
A140: 112001 | B140: 沅江市审计局 | C140: 458.51 | D140: 372.51 | E140: 298.91 | F140: 73.60 | G140: 86.00
A141: 114_沅江市文学艺术界联合会 | C141: 55.05 | D141: 34.05 | E141: 31.05 | F141: 3.00 | G141: 21.00
A142: 114001 | B142: 沅江市文学艺术界联合会 | C142: 55.05 | D142: 34.05 | E142: 31.05 | F142: 3.00 | G142: 21.00
A143: 115_沅江市融媒体中心(沅江市广播电视局) | C143: 1,348.93 | D143: 699.93 | E143: 624.93 | F143: 75.00 | G143: 649.00
A144: 115001 | B144: 沅江市融媒体中心 | C144: 1,348.93 | D144: 699.93 | E144: 624.93 | F144: 75.00 | G144: 649.00
A145: 116_沅江市档案馆 | C145: 216.44 | D145: 141.44 | E145: 127.44 | F145: 14.00 | G145: 75.00
A146: 116001 | B146: 沅江市档案馆 | C146: 216.44 | D146: 141.44 | E146: 127.44 | F146: 14.00 | G146: 75.00
A147: 118_沅江市文化广电新闻出版局 | C147: 1,315.75 | D147: 980.45 | E147: 883.45 | F147: 97.00 | G147: 335.30
A148: 118002 | B148: 沅江市文化广电新闻出版局-机关 | C148: 378.49 | D148: 212.19 | E148: 193.19 | F148: 19.00 | G148: 166.30
A149: 118003 | B149: 沅江市文化馆 | C149: 189.10 | D149: 189.10 | E149: 170.10 | F149: 19.00
B150: 沅江市文化馆（沅江市非物质文化遗产保护中心） | C150: 10.00 | G150: 10.00
A151: 118004 | B151: 沅江市图书馆 | C151: 207.30 | D151: 168.30 | E151: 152.30 | F151: 16.00 | G151: 39.00
A152: 118005 | B152: 沅江市洞庭博物馆 | C152: 84.53 | D152: 66.53 | E152: 59.53 | F152: 7.00 | G152: 18.00
A153: 118006 | B153: 沅江市文化市场综合行政执法大队 | C153: 268.32 | D153: 229.92 | E153: 204.92 | F153: 25.00 | G153: 38.40
A154: 118007 | B154: 沅江市全民健身服务中心 | C154: 178.02 | D154: 114.42 | E154: 103.42 | F154: 11.00 | G154: 63.60
A155: 121_沅江市行政审批服务局 | C155: 665.15 | D155: 158.67 | E155: 141.67 | F155: 17.00 | G155: 506.48
A156: 121001 | B156: 沅江市行政审批服务局 | C156: 665.15 | D156: 158.67 | E156: 141.67 | F156: 17.00 | G156: 506.48
A157: 124_沅江市机关事务服务中心 | C157: 140.98 | D157: 134.98 | E157: 121.98 | F157: 13.00 | G157: 6.00
A158: 124001 | B158: 沅江市机关事务服务中心 | C158: 140.98 | D158: 134.98 | E158: 121.98 | F158: 13.00 | G158: 6.00
A159: 125_中共沅江市委宣传部 | C159: 221.96 | D159: 140.96 | E159: 126.96 | F159: 14.00 | G159: 81.00
A160: 125001 | B160: 中共沅江市委宣传部 | C160: 221.96 | D160: 140.96 | E160: 126.96 | F160: 14.00 | G160: 81.00
A161: 126_沅江市妇女联合会 | C161: 142.79 | D161: 57.79 | E161: 51.79 | F161: 6.00 | G161: 85.00
A162: 126001 | B162: 沅江市妇女联合会 | C162: 142.79 | D162: 57.79 | E162: 51.79 | F162: 6.00 | G162: 85.00
A163: 127_中国共产主义共青团沅江市委员会 | C163: 98.09 | D163: 42.09 | E163: 37.09 | F163: 5.00 | G163: 56.00
A164: 127001 | B164: 中国共产主义共青团沅江市委员会 | C164: 98.09 | D164: 42.09 | E164: 37.09 | F164: 5.00 | G164: 56.00
A165: 129_湖南省沅江市工商业联合会 | C165: 96.92 | D165: 61.92 | E165: 55.92 | F165: 6.00 | G165: 35.00
A166: 129001 | B166: 湖南省沅江市工商业联合会 | C166: 96.92 | D166: 61.92 | E166: 55.92 | F166: 6.00 | G166: 35.00
A167: 130_中共沅江市委政法委 | C167: 308.68 | D167: 233.68 | E167: 191.18 | F167: 42.50 | G167: 75.00
A168: 130001 | B168: 中共沅江市委政法委 | C168: 308.68 | D168: 233.68 | E168: 191.18 | F168: 42.50 | G168: 75.00
A169: 131_中共沅江市委统一战线工作部 | C169: 269.16 | D169: 183.16 | E169: 167.16 | F169: 16.00 | G169: 86.00
A170: 131001 | B170: 中共沅江市委统一战线工作部 | C170: 269.16 | D170: 183.16 | E170: 167.16 | F170: 16.00 | G170: =81.8+4.2 -> 86.00
A171: 134_沅江市司法局 | C171: 1,277.91 | D171: 999.51 | E171: 823.51 | F171: 176.00 | G171: 278.40
A172: 134001 | B172: 沅江市司法局 | C172: 1,160.18 | D172: 927.78 | E172: 758.78 | F172: 169.00 | G172: 232.40
A173: 134002 | B173: 沅江市法律援助中心 | C173: 117.73 | D173: 71.73 | E173: 64.73 | F173: 7.00 | G173: 46.00
A174: 138_中共沅江市委党校 | C174: 447.41 | D174: 331.91 | E174: 301.91 | F174: 30.00 | G174: 115.50
A175: 138001 | B175: 中共沅江市委党校 | C175: 447.41 | D175: 331.91 | E175: 301.91 | F175: 30.00 | G175: 115.50
A176: 139_沅江市信访局 | C176: 206.05 | D176: 113.05 | E176: 102.05 | F176: 11.00 | G176: 93.00
A177: 139001 | B177: 沅江市信访局 | C177: 206.05 | D177: 113.05 | E177: 102.05 | F177: 11.00 | G177: 93.00
A178: 140_中共沅江市组织部 | C178: 801.78 | D178: 350.98 | E178: 313.98 | F178: 37.00 | G178: 450.80
A179: 140001 | B179: 中共沅江市委组织部 | C179: 649.14 | D179: 281.34 | E179: 252.34 | F179: 29.00 | G179: 367.80
A180: 140002 | B180: 沅江市老干部休养活动中心 | C180: 152.64 | D180: 69.64 | E180: 61.64 | F180: 8.00 | G180: 83.00
A181: 142_沅江市公安局 | C181: 7,676.60 | D181: 6,023.07 | E181: 5,071.07 | F181: 952.00 | G181: 1,653.53
A182: 142001 | B182: 沅江市公安局 | C182: 6,920.48 | D182: 5,603.08 | E182: 4,717.08 | F182: 886.00 | G182: 1,317.40
A183: 142002 | B183: 沅江市看守所 | C183: 517.60 | D183: 256.35 | E183: 215.35 | F183: 41.00 | G183: =256.25+5 -> 261.25
A184: 142003 | B184: 沅江市拘留所 | C184: 238.52 | D184: 163.64 | E184: 138.64 | F184: 25.00 | G184: 74.88
A185: 143_中国共产党沅江市纪律检查委员会 | C185: 1,520.20 | D185: 1,220.20 | E185: 911.20 | F185: 309.00 | G185: 300.00
A186: 143001 | B186: 中国共产党沅江市纪律检查委员会 | C186: 1,520.20 | D186: 1,220.20 | E186: 911.20 | F186: 309.00 | G186: 300.00
A187: 147_沅江市总工会 | C187: 388.62 | D187: 204.62 | E187: 183.62 | F187: 21.00 | G187: 184.00
A188: 147001 | B188: 沅江市总工会 | C188: 388.62 | D188: 204.62 | E188: 183.62 | F188: 21.00 | G188: 184.00
A189: 149_沅江市市场监督管理局 | C189: 3,333.08 | D189: 2,459.98 | E189: 2,211.98 | F189: 248.00 | G189: 873.10
A190: 149001 | B190: 沅江市市场监督管理局 | C190: 3,333.08 | D190: 2,459.98 | E190: 2,211.98 | F190: 248.00 | G190: 873.10
A191: 157_中共沅江市委巡察工作领导小组办公室 | C191: 232.76 | D191: 142.76 | E191: 106.76 | F191: 36.00 | G191: 90.00
A192: 157001 | B192: 中共沅江市委巡察工作领导小组办公室 | C192: 232.76 | D192: 142.76 | E192: 106.76 | F192: 36.00 | G192: 90.00
A193: 158_中共沅江市委网络安全和信息化委员会办公室 | C193: 103.59 | D193: 52.59 | E193: 46.59 | F193: 6.00 | G193: 51.00
A194: 158001 | B194: 中共沅江市委网络安全和信息化委员会办公室 | C194: 103.59 | D194: 52.59 | E194: 46.59 | F194: 6.00 | G194: 51.00
A195: 201_沅江市医疗保障局 | C195: 581.51 | D195: 474.91 | E195: 425.91 | F195: 49.00 | G195: 106.60
A196: 201001 | B196: 沅江市医疗保障局 | C196: 581.51 | D196: 474.91 | E196: 425.91 | F196: 49.00 | G196: 106.60
A197: 202_沅江市人力资源和社会保障局 | C197: 1,443.63 | D197: 1,071.63 | E197: 958.63 | F197: 113.00 | G197: 372.00
A198: 202001 | B198: 沅江市人力资源和社会保障局 | C198: 539.28 | D198: 389.28 | E198: 351.28 | F198: 38.00 | G198: 150.00
A199: 202002 | B199: 沅江市工伤保险服务中心 | C199: =D199+G199 -> 116.77 | D199: 86.77 | E199: 77.77 | F199: 9.00 | G199: 30.00
A200: 202003 | B200: 沅江市就业服务管理局 | C200: 210.02 | D200: 182.02 | E200: 162.02 | F200: 20.00 | G200: 28.00
... 154 more rows

Sheet 表6
A1: 表6
A2: 2022年单位专项申报汇总表
A3: 业务股室（盖章）： | K3: 单位：万元 | L3: 单位：万元
A4: 项目名称 | B4: 2021年预算金额 | C4: 拟定增加金额 | D4: 拟定减少金额 | E4: 2022拟定金额 | F4: 一般公共预算安排 | J4: 政府性基金安排 | K4: 备注 | L4: 建议
F5: 小计 | G5: 经费拨款 | H5: 非税拨款 | I5: 上级补助
A6: 人大常务会议及主任会议 | B6: 24 | E6: =B6+C6+D6 -> 24 | F6: =SUM(G6:I6) -> 24 | G6: 24 | L6: 上年度机关预算156万，本年度172万，项目重新整合，相关依据系文件及法规
A7: 人大执法、监督专项 | B7: 50 | E7: 50 | F7: 50 | G7: 50
A8: 调研视察工作专项 | B8: 42 | E8: 42 | F8: 42 | G8: 42
A9: 一般行政管理事务专项 | B9: 25 | E9: 25 | F9: 25 | G9: 25
A10: 预算联网监督运行专项 | B10: 15 | E10: 15 | F10: 15 | G10: 15
A11: 人大机关小计 | B11: =SUM(B6:B10) -> 156 | C11: =SUM(C6:C10) -> 0.00 | D11: =SUM(D6:D10) -> 0.00 | E11: 156 | F11: 156.00 | G11: =SUM(G6:G10) -> 156.00 | H11: 0.00 | I11: 0.00 | J11: 0.00
A12: 委室调研经费 | B12: 26.00 | E12: 26 | F12: 26 | G12: 26
A13: 全市委员调研经费 | B13: 26.00 | E13: 26 | F13: 26 | G13: 26
A14: 走访外地委员经费 | B14: 7.00 | E14: 7 | F14: 7 | G14: 7
A15: 委员活动及委员工作室经费 | B15: 15.00 | E15: 15 | F15: 15 | G15: 15
A16: 委员视察 | B16: 7.00 | E16: 7 | F16: 7 | G16: 7
A17: 双月协商工作经费 | B17: 5.00 | E17: 5 | F17: 5 | G17: 5
A18: 民主监督及民主评议工作经费 | B18: 10.00 | E18: 10 | F18: 10 | G18: 10
A19: 上级专题调研及考察经费 | B19: 10.00 | E19: 10 | F19: 10 | G19: 10
A20: 重点项目工作经费 | E20: 0 | F20: 0
A21: 《沅江文史》编撰 | E21: 0 | F21: 0
A22: 政协机关小计 | B22: =SUM(B12:B21) -> 106 | C22: =SUM(C12:C21) -> 0.00 | D22: =SUM(D12:D21) -> 0.00 | E22: =SUM(E12:E21) -> 106 | F22: 106.00 | G22: =SUM(G12:G21) -> 106.00 | H22: 0.00 | I22: 0.00 | J22: 0.00
A23: 业务工作及运行维护专项 | B23: 19.80 | C23: 0.20 | E23: =B23+C23+D23 -> 20 | F23: 20 | G23: 20
A24: 调研工作经费 | B24: 15.00 | E24: 15 | F24: 15 | G24: 15
A25: 《沅江工作》编印费 | B25: 13.00 | E25: 13 | F25: 13 | G25: 13
A26: 全市办公室主任业务培训工作经费 | B26: 7.00 | E26: 7 | F26: 7 | G26: 7
A27: 市全面小康领导小组办公室工作经费 | B27: 12.00 | D27: -12.00 | E27: 0 | F27: 0 | G27: 0
A28: 督查专项经费 | B28: 28.00 | E28: 28 | F28: 28 | G28: 28
A29: 市委保密工作经费 | B29: 8.00 | E29: 8 | F29: 8 | G29: 8
A30: 市委党建、农业农村等中心工作经费 | B30: 30.00 | E30: 30 | F30: 30 | G30: 30
A31: 市委政府保密专网租费 | B31: 5.20 | D31: -5.20 | E31: 0 | F31: 0 | G31: 0
A32: 专用通信二级网运行及党委幻真视屏会议系统 | B32: 30.00 | C32: 9.00 | E32: 39 | F32: 39 | G32: 39
A33: 市委财经委员会工作经费 | B33: 8.00 | E33: 8 | F33: 8 | G33: 8
A34: 市全面深化改革领导小组办公室工作经费 | B34: 8.00 | E34: 8 | F34: 8 | G34: 8
A35: 全市电子政务内网运行及维护专项费用 | B35: 33.00 | D35: -4.00 | E35: 29 | F35: 29 | G35: 29
A36: 档案综合管理专项经费 | B36: 5.00 | E36: 5 | F36: 5 | G36: 5
A37: 外事（港澳台）专项工作经费 | B37: 5.00 | E37: 5 | F37: 5 | G37: 5
A38: 党委信息工作经费 | C38: =10+2 -> 12.00 | E38: 12 | F38: 12 | G38: 12
A39: 市委政策研究工作经费 | E39: 0 | F39: 0 | G39: 0
A40: 市委办小计 | B40: =SUM(B23:B39) -> 227.00 | C40: =SUM(C23:C39) -> 21.20 | D40: =SUM(D23:D39) -> -21.20 | E40: 227 | F40: 227.00 | G40: =SUM(G23:G39) -> 227.00 | H40: 0.00 | I40: 0.00 | J40: 0.00
A41: 政务（应急、机要、市长热线）值班专项经费 | B41: 10 | C41: 6.00 | E41: 16 | F41: 16 | G41: 16
A42: 市重点办专项经费 | B42: 9 | E42: 9 | F42: 9 | G42: 9
A43: 应急专项经费 | B43: 10 | E43: 10 | F43: 10 | G43: 10
A44: 打击非法集资专项经费 | B44: 8.1 | E44: 8.1 | F44: 8.1 | G44: 8.1
A45: 提案议案办理经费 | B45: 4 | E45: 4 | F45: 4 | G45: 4
A46: 交流干部生活保障专项经费 | B46: 10 | D46: -10.00 | E46: 0 | F46: 0 | G46: 0 | K46: 列市级专项
A47: 电视电话会议系统租金及宽带费 | B47: 6 | E47: 6 | F47: 6 | G47: 6
A48: 业务工作及运行维护专项 | B48: 29 | C48: =20+10 -> 30.00 | E48: 59 | F48: 59 | G48: 59
A49: 报刊杂志及政府专项费用 | B49: 30 | D49: -30.00 | E49: 0 | F49: 0 | G49: 0
A50: 政府工作报告专项 | B50: 7 | E50: 7 | F50: 7 | G50: 7
A51: 应急平台及12345平台维护费 | B51: 3 | D51: -3.00 | E51: 0 | F51: 0 | G51: 0
A52: 督察专项 | B52: 5 | C52: 5.00 | E52: 10 | F52: 10 | G52: 10
A53: 市长热线专项经费 | B53: 3 | D53: -3.00 | E53: 0 | F53: 0 | G53: 0
A54: 重大决策调研专项 | B54: 25 | E54: 25 | F54: 25 | G54: 25
A55: 政务公开专项工作经费 | B55: 10 | C55: 5.00 | E55: 15 | F55: 15 | G55: 15
A56: 招商引资工作经费 | E56: 0 | F56: 0 | G56: 0
A57: 政府办小计 | B57: =SUM(B41:B56) -> 169.1 | C57: =SUM(C41:C56) -> 46.00 | D57: =SUM(D41:D56) -> -46.00 | E57: =SUM(E41:E56) -> 169.10 | F57: 169.10 | G57: =SUM(G41:G56) -> 169.10 | H57: 0.00 | I57: 0.00 | J57: 0.00
A58: 领导班子考核专项(政治建设考察工作经费) | B58: 9 | E58: =B58+C58+D58 -> 9 | F58: 9 | G58: 9 | L58: 上年度470万，本年度551万，新增项目依据为日常支出及相关条例
A59: 选调生和大学生村官专项 | B59: 10 | E59: 10 | F59: 10 | G59: 10
A60: 信息调研工作经费 | B60: 5 | E60: 5 | F60: 5 | G60: 5
A61: 党建专项经费 | B61: 66.25 | E61: 66.25 | F61: 66.25 | G61: 66.25
A62: 大组工网建设 | B62: 3.55 | E62: 3.55 | F62: 3.55 | G62: 3.55
A63: 组工干部外出培训 | B63: 22.2 | D63: -22.20 | E63: 0 | F63: 0 | G63: 0 | K63: 并入市级专项
A64: 干部档案管理与信息化建设 | B64: 5 | E64: 5 | F64: 5 | G64: 5
A65: 两新工委及指导员津贴 | B65: 40 | E65: 40 | F65: 40 | G65: 40
A66: 绩效考核经费 | B66: 26 | E66: 26 | F66: 26 | G66: 26
A67: 党代表调研工作经费 | B67: 30 | E67: 30 | F67: 30 | G67: 30
A68: 驻村办工作经费 | B68: 5 | E68: 5 | F68: 5 | G68: 5
A69: 党员教育经费 | B69: 40 | E69: 40 | F69: 40 | G69: 40
A70: 公务员考察、培训、信息维护等工作经费 | B70: 10 | E70: 10 | F70: =SUM(G70:I70) -> 10 | G70: 10
A71: 村、社区支部书记培训经费 | E71: 0 | F71: 0 | G71: 0 | K71: 转市级专项
A72: 关心下一代工作经费 | B72: 10 | E72: 10 | F72: 10 | G72: 10
A73: 离退休党工委工作经费 | B73: 5 | E73: 5 | F73: 5 | G73: 5
A74: 老干活动工作经费 | B74: 19 | E74: 19 | F74: 19 | G74: 19
A75: 老干特需经费 | B75: 69 | E75: 69 | F75: 69 | G75: 69
A76: 特困离退休干部及孀帮扶专项 | B76: 10 | E76: 10 | F76: 10 | G76: 10
A77: 干部教育经费(党校) | B77: 80 | D77: -80.00 | E77: 0 | F77: 0 | G77: 0 | K77: 调整至党校
A78: 市直机关工委经费 | B78: 5 | E78: 5 | F78: 5 | G78: 5
A79: 组织部小计 | B79: =SUM(B58:B78) -> 470 | C79: =SUM(C58:C78) -> 0.00 | D79: =SUM(D58:D78) -> -102.20 | E79: =SUM(E58:E78) -> 367.8 | F79: 367.80 | G79: =SUM(G58:G78) -> 367.80 | H79: 0.00 | I79: 0.00 | J79: 0.00
A80: 专项工作经费 | B80: 35.2 | D80: -0.20 | E80: =B80+C80+D80 -> 35 | F80: 35 | G80: 35 | L80: 上年度78万，本年度110万，部分新增依据有常委会议纪要
A81: 侨联侨办工作经费 | B81: 4 | E81: 4 | F81: 4 | G81: 4
A82: 民宗工作经费 | B82: 2.8 | C82: =10+2.2 -> 12.20 | E82: 15 | F82: 15 | G82: 15
A83: 民宗工作补助及执法工作经费 | B83: 7 | D83: -7.00 | E83: 0 | F83: 0 | G83: 0
A84: 宗教团体管理费 | B84: 7 | D84: -7.00 | E84: 0 | F84: 0 | G84: 0
A85: 党外代表人士队伍建设经费 | B85: 3 | E85: 3 | F85: 3 | G85: 3
A86: 非公经济代表人士评价体系工作经费 | B86: 3 | E86: 3 | F86: 3 | G86: 3
A87: 四同创建工作经费 | B87: 8 | E87: 8 | F87: 8 | G87: 8
A88: 党外知识分子联谊会工作经费 | B88: 8 | E88: 8 | F88: 8 | G88: 8
A89: 宗教场所减存量专项工作经费 | C89: =8+2 -> 10.00 | E89: 10 | F89: 10 | G89: 10
A90: 新的社会阶层人士工作经费 | E90: 0 | F90: 0 | G90: 0
A91: 统战部小计 | B91: =SUM(B80:B90) -> 78 | C91: =SUM(C80:C90) -> 22.20 | D91: =SUM(D80:D90) -> -14.20 | E91: =SUM(E80:E90) -> 86 | F91: 86.00 | G91: =SUM(G80:G90) -> 86.00 | H91: 0.00 | I91: 0.00 | J91: 0.00
A92: 反腐倡廉宣传教育工作经费 | B92: 20 | C92: 10.00 | E92: =B92+C92+D92 -> 30 | F92: 30 | G92: 30
A93: 专整办工作经费 | B93: 12 | C93: 3.00 | E93: 15 | F93: 15 | G93: 15
A94: 廉政教育基地和办案点运行维护费 | B94: 6 | E94: 6 | F94: 6 | G94: 6
A95: 纪检监察一体化管理联动工作经费 | B95: 15 | E95: 15 | F95: 15 | G95: 15
A96: 执法用车运行维护费 | B96: 25 | E96: 25 | F96: 25 | G96: 25 | K96: 每台公车全年5万元维护费，5台*5万
A97: 特约监察员经费 | B97: 7.5 | E97: 7.5 | F97: 7.5 | G97: 7.5 | K97: 15人*0.5万
A98: 涉密专网维护费 | B98: 1.5 | E98: 1.5 | F98: 1.5 | G98: 1.5 | K98: 每年运行维护需固定上交益阳1.5万元
A99: 办案专项经费 | B99: 200 | E99: 200 | F99: 200 | H99: 200
A100: 纪委小计 | B100: =SUM(B92:B99) -> 287 | C100: =SUM(C92:C99) -> 13.00 | D100: =SUM(D92:D99) -> 0.00 | E100: =SUM(E92:E99) -> 300 | F100: 300.00 | G100: =SUM(G92:G99) -> 100.00 | H100: 200.00 | I100: 0.00 | J100: 0.00
A101: 办案经费 | B101: 2 | E101: =B101+C101+D101 -> 2 | F101: 2 | G101: 2
A102: 扫黑除恶专项斗争工作经费 | B102: 20 | E102: 20 | F102: 20 | G102: 20
A103: 国安工作经费 | B103: 8 | E103: 8 | F103: 8 | G103: 8
A104: 反邪教外勤工作经费 | B104: 2 | D104: -2.00 | E104: 0 | F104: 0 | G104: 0
A105: 反邪教联防联控费用 | B105: 4 | D105: -4.00 | E105: 0 | F105: 0 | G105: 0
A106: 法学会工作 | B106: 8 | E106: 8 | F106: 8 | G106: 8
A107: 维稳工作经费 | B107: 14 | C107: 3.00 | E107: 17 | F107: 17 | G107: 17 | K107: 市级专项减少部分适当增加到单位
A108: 教育转化工作经费 | B108: 4 | D108: -4.00 | E108: 0 | F108: 0 | G108: 0
A109: 反邪教工作经费 | B109: 5 | C109: =5+5 -> 10.00 | E109: 15 | F109: 15 | G109: 15 | K109: 四项反邪教工作经费合并
A110: 临聘人员人头经费 | E110: 0 | F110: 0 | G110: 0
A111: 司法救助工作经费 | C111: 5.00 | E111: 5 | F111: 5 | G111: 5
A112: 监督服务微信群建设工作经费 | E112: 0 | F112: 0 | G112: 0
A113: 社会治理示范乡乡镇表彰 | E113: 0 | F113: 0 | G113: 0
A114: 政法委 | B114: =SUM(B101:B113) -> 67 | C114: =SUM(C101:C113) -> 18.00 | D114: =SUM(D101:D113) -> -10.00 | E114: =SUM(E101:E113) -> 75 | F114: 75.00 | G114: =SUM(G101:G113) -> 75 | H114: 0 | I114: 0 | J114: 0
A115: 事业单位法人年检登记费 | B115: 4 | C115: 2.00 | E115: =B115+C115+D115 -> 6 | F115: 6 | G115: 6 | L115: 上年度26万，本年度35万，减少了编委工作经费5万，新增事业单位网上登记、年报编制、实名制管理等三个工作内容(在职9人、退休2人；考虑新增实名制管理及年报统计两项工作内容以及人均基数较低，建议总体增加9万）
A116: 事业单位网上登记工作 | C116: 2.00 | E116: 2 | F116: 2 | G116: 2
A117: 大编委工作经费 | B117: 10 | D117: -5.00 | E117: 5 | F117: 5 | G117: 5
A118: 编制年报、统计工作经费 | B118: 2 | E118: 2 | F118: 2 | G118: 2
A119: 实名制管理 | C119: 4.00 | E119: 4 | F119: 4 | G119: 4
A120: 中文域名注册工作经费 | C120: 3.00 | E120: 3 | F120: 3 | G120: 3
A121: 全市行政事业单位中文域名经费 | B121: 10 | E121: 10 | F121: 10 | G121: 10
A122: 编办小计 | B122: =SUM(B115:B121) -> 26 | C122: =SUM(C115:C121) -> 11.00 | D122: =SUM(D115:D121) -> -5.00 | E122: =SUM(E115:E121) -> 32 | F122: 32.00 | G122: =SUM(G115:G121) -> 32.00 | H122: 0.00 | I122: 0.00 | J122: 0.00
A123: 物业管理经费 | B123: 4 | C123: 3.00 | E123: =B123+C123+D123 -> 7 | F123: 7 | G123: 7 | L123: 上年度27.5万，本年度77万，沅干教办发【2021】1号文件新增20万，另一次性教学设备购置30万（在职30人，退休21人；建议按照申报项目新增19.5万，30万更新改造列追加费用）
A124: 教学、科研、图书购置及教师调研、进修项目 | B124: 15.5 | C124: 5.00 | E124: 20.5 | F124: 20.5 | G124: 15.5 | H124: 5
A125: 教学设备购置更新项目 | B125: 8 | E125: 8 | F125: 8 | G125: 8
A126: 主体班教育经费 | C126: 80.00 | E126: 80 | F126: 80 | G126: 80
A127: 党校(小计 | B127: =SUM(B123:B126) -> 27.50 | C127: =SUM(C123:C126) -> 88.00 | D127: =SUM(D123:D126) -> 0.00 | E127: =SUM(E123:E126) -> 115.50 | F127: 115.50 | G127: =SUM(G123:G126) -> 110.50 | H127: 5.00 | I127: 0.00 | J127: 0.00
A128: 《党史专题》、《沅江纪事》、《益阳党委执政实录》专项 | B128: 13.5 | C128: 4.00 | E128: =B128+C128+D128 -> 17.5 | F128: 17.5 | G128: 17.5 | L128: 上年度47万，本年度69.5万，部分有依据，有必要收集相关支出金额实际依据（在职3人，退休4人；建议《沅江年鉴》项目彩页成本认可6万，地情挖掘增加5万，总体增加11万）
A129: 《沅江年鉴》编印专项 | B129: 21 | C129: 4.00 | E129: 25 | F129: 25 | G129: 25
A130: 党史专题 | B130: 12.5 | D130: -3.00 | E130: 9.5 | F130: 9.5 | G130: 9.5
A131: 地情挖掘收集专项 | C131: 2.00 | E131: 2 | F131: 2 | G131: 2
A132: 史志编纂室小计 | B132: =SUM(B128:B131) -> 47 | C132: =SUM(C128:C131) -> 10.00 | D132: =SUM(D128:D131) -> -3.00 | E132: =SUM(E128:E131) -> 54 | F132: 54.00 | G132: =SUM(G128:G131) -> 54.00 | H132: 0.00 | I132: 0.00 | J132: 0.00
A133: 老年活动中心专项 | B133: 38 | E133: =B133+C133+D133 -> 38 | F133: 38 | G133: 38 | L133: 比上年增加20万，依据沅老干组发【2017】1号（在职8人，退休1人；由于老年大学办班新增6个，8个协会人员增加因素，建议老年大学增加5万，协会增加2万）
A134: 老年大学专项 | B134: 15 | C134: 3.00 | E134: 18 | F134: =SUM(G134:I134) -> 18 | G134: 18
A135: 老年协会活动专项 | B135: 20 | C135: 2.00 | E135: 22 | F135: 22 | G135: 22
A136: 老年体协活动专项 | B136: 5 | E136: 5 | F136: 5 | G136: 5
A137: 老干活动中心小计 | B137: =SUM(B133:B136) -> 78 | C137: =SUM(C133:C136) -> 5.00 | D137: =SUM(D133:D136) -> 0.00 | E137: =SUM(E133:E136) -> 83 | F137: 83.00 | G137: =SUM(G133:G136) -> 83.00 | H137: 0.00 | I137: 0.00 | J137: 0.00
A138: 民调中心经费 | B138: 16 | E138: =B138+C138+D138 -> 16 | F138: 16 | G138: 16 | L138: 与上年度无变化，上级补助需要重新计算以满足4.5人均公用经费，其他专项支出全额通过非税收入弥补（在职308人，退伍122人，退休120人；建议维持上年基数）
A139: 执法执收成本 | B139: 116 | E139: 116 | F139: 116 | G139: 116
A140: 实习特警经费 | B140: 300 | E140: 300 | F140: 300 | G140: 300
A141: 三小场所管理专项经费 | B141: 10 | E141: 10 | F141: 10 | G141: 10
A142: 城区烟花爆竹禁放经费 | B142: 15 | E142: 15 | F142: 15 | G142: 15
A143: 国保专项工作经费 | B143: 20.4 | E143: 20.4 | F143: 20.4 | G143: 20.4
A144: 经侦办案经费 | B144: 18 | E144: 18 | F144: 18 | G144: 18
A145: 禁毒经费 | B145: 20 | E145: 20 | F145: 20 | G145: 20
A146: 反恐维稳专项经费 | B146: 10 | E146: 10 | F146: 10 | G146: 10
A147: 辅警人员经费和工作经费 | B147: 150 | E147: 150 | F147: 150 | G147: 150
A148: 办案经费 | B148: 610 | C148: 2.00 | E148: 612 | F148: 612 | G148: 102.2 | I148: 509.8 | K148: 306人，2万/人，上级转移支付509.8万，本级安排102.2万
A149: 扫黑除恶专项经费 | B149: 30 | E149: 30 | F149: 30 | G149: 30
A150: 装备购置费 | B150: 258 | D150: -258.00 | E150: 0 | F150: 0 | G150: 0 | K150: 上级补助安排
A151: 公安局小计 | B151: =SUM(B138:B150) -> 1573.4 | C151: =SUM(C138:C150) -> 2.00 | D151: =SUM(D138:D150) -> -258.00 | E151: =SUM(E138:E150) -> 1317.4 | F151: 1317.40 | G151: =SUM(G138:G150) -> 807.60 | H151: 0.00 | I151: 509.80 | J151: 0.00
A152: 办案经费 | B152: 42 | D152: -10.00 | E152: =B152+C152+D152 -> 32 | F152: 32 | G152: 32 | K152: 16人*2万元/人/年 | L152: 比上年增加83.41万元，除非税收入增加20万之外，其他新增资金计算依据不充分。项目依据基本齐全，具体金额待核定（在职17人，退休12人；劳改生活费有依据，医疗和拘留整合服务，在押人员改善生活由非税弥补，电费增加无依据，建议认定劳改人员生活费增加7.41万，医疗合同认定增加10万，在押人员改善生活费增加10万，共计27.41万）
A153: 物业管理费用 | B153: 37 | C153: 10.00 | E153: 47 | F153: 47 | G153: 47
A154: 羁押人员给养经费 | B154: 99.84 | C154: 7.41 | E154: 107.25 | F154: 107.25 | G154: 107.25 | K154: 280人*320元/月*12月
A155: 衣被及重病号医护费 | B155: 6 | D155: -6.00 | E155: 0 | F155: 0 | G155: 0
A156: 看守所维修、投劳救治费 | B156: 15 | E156: 15 | F156: 15 | G156: 15
A157: 医疗专业化建设工作经费 | B157: 30 | C157: 10.00 | E157: 40 | F157: 40 | G157: 40 | K157: 历年追加10万
A158: 在押人员改善生活及生活用品 | B158: 10 | D158: -10.00 | E158: 0 | F158: 0 | G158: 0
A159: 监区水电费专项 | C159: =15+5 -> 20.00 | E159: 20 | F159: 20 | H159: 20
A160: 看守所小计 | B160: =SUM(B152:B159) -> 239.84 | C160: =SUM(C152:C159) -> 47.41 | D160: =SUM(D152:D159) -> -26.00 | E160: =SUM(E152:E159) -> 261.25 | F160: 261.25 | G160: =SUM(G152:G159) -> 241.25 | H160: 20.00 | I160: 0.00 | J160: 0.00
A161: 拘留人员给养经费 | B161: 26.88 | E161: =B161+C161+D161 -> 26.88 | F161: 26.88 | G161: 26.88 | L161: 比上年水电、伙食、医疗13万，物业管理费用24万合同（在职10人，退休6人；建议认定增加物业费用24万合同款，拘押人员医疗费用增加5万）
A162: 戒毒人员经费 | B162: 8 | E162: 8 | F162: 8 | G162: 8
A163: 水电、伙食、医疗费 | B163: 20 | D163: -20.00 | E163: 0 | F163: 0 | G163: 0
A164: 办案经费 | B164: 20 | E164: 20 | F164: 20 | G164: 20 | K164: 10人*2万元/人/年
A165: 物业管理费用 | C165: 20.00 | E165: 20 | F165: 20 | G165: 20
A166: 拘留所小计 | B166: =SUM(B161:B165) -> 74.88 | C166: =SUM(C161:C165) -> 20.00 | D166: =SUM(D161:D165) -> -20.00 | E166: =SUM(E161:E165) -> 74.88 | F166: 74.88 | G166: =SUM(G161:G165) -> 74.88 | H166: 0.00 | I166: 0.00 | J166: 0.00
A167: 依法治市工作经费 | C167: 10.00 | E167: =B167+C167+D167 -> 10 | F167: 10 | G167: 10 | L167: 比上年度增加48万，其中依法治市10万为2021年常务会纪要，普法宣传38万为调整人均标准（在职73人，退伍7人，退休26人；建议认定依法治市10万，普法宣传38万）
A168: 行政复议工作经费 | E168: 0 | F168: 0 | G168: 0
A169: 三调联动工作经费 | B169: 6.4 | E169: 6.4 | F169: 6.4 | G169: 6.4
A170: 医疗纠纷调解委员会 | B170: 20 | E170: 20 | F170: 20 | G170: 20
A171: 普法宣传专项经费 | B171: 38 | D171: -2.00 | E171: 36 | F171: 36 | G171: 36
A172: 社区矫正工作经费 | B172: 90 | E172: 90 | F172: 90 | G172: 90
A173: 法律顾问法治工作经费 | B173: 32 | E173: 32 | F173: 32 | G173: 32
A174: “以奖代补”案卷补贴 | B174: 10 | E174: 10 | F174: 10 | G174: 10
A175: 安置帮教工作经费 | B175: 6 | E175: 6 | F175: 6 | G175: 6
A176: 政府购买人民调解等服务 | B176: 22 | E176: 22 | F176: 22 | G176: 22
A177: 上级补助装备经费 | B177: 67 | D177: -67.00 | E177: 0 | F177: 0 | G177: 0
A178: 上级办案经费 | B178: 55 | D178: -55.00 | E178: 0 | F178: 0 | G178: 0
A179: 司法局小计 | B179: =SUM(B167:B178) -> 346.4 | C179: =SUM(C167:C178) -> 10.00 | D179: =SUM(D167:D178) -> -124.00 | E179: =SUM(E167:E178) -> 232.4 | F179: 232.40 | G179: =SUM(G167:G178) -> 232.40 | H179: 0.00 | I179: 0.00 | J179: 0.00
A180: 绩效评价专项经费 | B180: 30 | E180: =B180+C180+D180 -> 30 | F180: 30 | G180: 30 | L180: （在职135人，退休58人无变化）
A181: 预算编制及调查专项经费 | B181: 10 | E181: 10 | F181: 10 | G181: 10
A182: 国有资产管理专项 | B182: 50 | E182: 50 | F182: 50 | G182: 50
A183: 票据网络维护专项经费 | B183: 17 | E183: 17 | F183: 17 | G183: 17
A184: 财政决算编制及培训专项 | B184: 20 | E184: 20 | F184: 20 | G184: 20
A185: 互联网+监督专项经费 | B185: 20 | E185: 20 | F185: 20 | G185: 20
A186: 财务制度培训专项 | B186: 20 | E186: 20 | F186: 20 | G186: 20
A187: 国库集中支付清算专项 | B187: 30 | E187: 30 | F187: 30 | G187: 30
A188: 非税征缴工作经费 | B188: 160 | E188: 160 | F188: 160 | H188: 160
A189: 农村财会人员支农政策培训 | B189: 15 | E189: 15 | F189: 15 | G189: 15
A190: 政府采购电子卖场维护费 | B190: 17 | E190: 17 | F190: 17 | G190: 17
A191: 乡镇财政管理专项 | B191: 71.45 | E191: 71.45 | F191: 71.45 | G191: 71.45
A192: 非税票据工本费 | B192: 30 | E192: 30 | F192: 30 | G192: 30
A193: 乡财乡用网络租赁维护专项经费 | B193: 27.05 | E193: 27.05 | F193: 27.05 | G193: 27.05
A194: 乡村振兴补助专项 | E194: 0 | F194: 0 | G194: 0
A195: 财政局小计 | B195: =SUM(B180:B194) -> 517.5 | C195: =SUM(C180:C194) -> 0.00 | D195: =SUM(D180:D194) -> 0.00 | E195: =SUM(E180:E194) -> 517.5 | F195: 517.50 | G195: =SUM(G180:G194) -> 357.50 | H195: 160.00 | I195: 0.00 | J195: 0.00
A196: 全市财务档案维护管理经费 | B196: 5 | E196: =B196+C196+D196 -> 5 | F196: 5 | G196: 5 | L196: 与上年度无变化，项目依据以前年度基数（在职9人，退休4人,建议维持原基数）
A197: 国库集中支付业务费用 | B197: 8 | E197: 8 | F197: 8 | G197: 8
A198: 财务费用 | B198: 26 | E198: 26 | F198: =SUM(G198:I198) -> 26 | G198: 26
A199: 年终决算费用 | B199: 5 | E199: 5 | F199: 5 | G199: 5
A200: 国库集中支付中心小计 | B200: =SUM(B196:B199) -> 44 | C200: =SUM(C196:C199) -> 0.00 | D200: =SUM(D196:D199) -> 0.00 | E200: =SUM(E196:E199) -> 44 | F200: 44.00 | G200: =SUM(G196:G199) -> 44 | H200: 0 | I200: 0 | J200: 0
... 701 more rows

Sheet 表7
A1: 表7
A2: 2022年市级专项预算异动明细汇总表（草案）
I3: 单位：万元 | J3: 单位：万元
A4: 项目名称 | B4: 科目 | C4: 2021年预算金额 | D4: 2022年申报增加金额 | E4: 拟定增加金额 | F4: 拟定减少金额 | G4: 2022拟定金额 | H4: 备注 | I4: 政策依据及标准 | J4: 类别
A6: 汇总合计 | C6: =C7+C8 -> 177249.949 | D6: 92932.4541 | E6: 76357.295 | F6: -41406.264 | G6: 212200.98
A7: 一般公共预算合计 | C7: =C9+C23+C53+C110+C133+C165+C175 -> 103430.805 | D7: =D9+D23+D53+D110+D133+D165+D175 -> 52189.4741 | E7: =E9+E23+E53+E110+E133+E165+E175 -> 43119.725 | F7: =F9+F23+F53+F110+F133+F165+F175 -> -7392.12 | G7: =G9+G23+G53+G110+G133+G165+G175 -> 139158.41
A8: 政府性基金合计 | C8: =C145 -> 73819.144 | D8: 40742.98 | E8: 33237.57 | F8: -34014.144 | G8: 73042.57
A9: 一、工资福利类项目 | C9: =SUM(C10:C21) -> 12986.74 | D9: 10710.61 | E9: 6172.69 | F9: -150 | G9: 19009.43
A10: 全市绩效考核奖金 | B10: 201 | C10: 9370.00 | D10: 5800.00 | E10: 3630.00 | G10: =C10+E10+F10 -> 13000.00 | J10: 1
A11: 公务交通补贴 | B11: 201 | C11: 1900.00 | E11: 100.00 | G11: 2000.00 | I11: 按上年实际支出数测算 | J11: 1
A12: 乡镇工资提标 | B12: 201 | C12: 1300.00 | G12: 1300.00 | H12: 卫生系统按30% | I12: 2021年半年507万，另卫生系统189万*30% | J12: 1
A13: 城管局协管员工资 | B13: 212 | C13: 150.00 | D13: 150.00 | F13: -150.00 | G13: 0.00 | H13: 调整至单位专项 | I13: 50名协管员工资，一年一签 | J13: 4
A14: 政务中心窗口工作人员餐补 | B14: 201 | C14: 134.00 | G14: =C14+E14+F14 -> 134.00 | I14: 窗口应到330人，实际314人，15元/天，338元/月 | J14: 1
A15: 高层次人才补贴 | B15: 201 | C15: 90.00 | G15: 90.00 | I15: 组织部牵头实施 | J15: 1
A16: 畜牧退休人员工资补差 | B16: 201 | C16: 30.00 | G16: 30.00 | J16: 1
A17: 职教幼教退休待遇补差 | B17: 201 | C17: 12.74 | G17: 12.74 | I17: 据实测算 | J17: 1
A18: 在职及离休人员工资普调 | B18: 201 | D18: 4417.92 | E18: 2100.00 | G18: 2100.00 | H18: 新增 | I18: 1月份已拨1472.64万,上级补助3432万除外
A19: 人才补贴经费及选调生相关工作资金 | B19: 201 | D19: 130.69 | E19: 130.69 | G19: 130.69 | I19: 1月份已拨130.68万
A20: 茶盘洲电管站人员安置 | B20: 201 | D20: 50.00 | E20: 50.00 | G20: 50.00
A21: 民办代课教师生活困难补助 | B21: 205 | D21: 162.00 | E21: 162.00 | G21: 162.00 | I21: 已纳入转移支付基数270000元/月*12*0.5=1620000 | J21: 1
A23: 二、基本运转类项目 | C23: =SUM(C24:C51) -> 17448.70 | D23: =SUM(D24:D51) -> 1250.32 | E23: =SUM(E24:E51) -> 1344.36 | F23: =SUM(F24:F51) -> -653.88 | G23: =SUM(G24:G51) -> 18139.18
A24: 政府债券付息支出 | B24: 232 | C24: 11015.00 | D24: 435.00 | E24: 281.00 | G24: =C24+E24+F24 -> 11296.00 | I24: 按实增加 | J24: 2
A25: 南洞庭湿地保护事务中心运转经费 | B25: 213 | C25: 2000.00 | F25: -213.03 | G25: 1786.97 | J25: 1
A26: 漉湖湿地保护事务中心运转经费 | C26: 2000.00 | F26: -315.85 | G26: 1684.15
A27: 消防大队经费 | B27: 224 | C27: 607.80 | E27: 47.16 | G27: =C27+E27+F27 -> 654.96 | H27: 政府常务会（2020）9号 | I27: 其中非税20万。湘北消防站增加5人*7.2,1台车7万,租凭4.16万 | J27: 2
A28: 市治大院运转及维护 | B28: 201 | C28: 425.00 | D28: 43.52 | E28: 43.52 | G28: 468.52 | H28: 增加部分按合同金额据实测算 | I28: 水电费、维修维护、物业管理 | J28: 2
A29: 公务用车平台经费 | B29: 201 | C29: 335.00 | D29: 9.60 | E29: 9.60 | G29: 344.60 | H29: 新增北斗导航系统维护费，按合同金额 | I29: 公务用车平台油费、维修费等 | J29: 2
A30: 全市性会议 | B30: 201 | C30: 240.00 | F30: -60.00 | G30: 180.00 | I30: 含两会、经济工作会议、乡村振兴工作会议等全市性会议 | J30: 2
A31: 人武部民兵训练、征兵、装备及机构经费 | B31: 203 | C31: 240.00 | D31: 140.00 | E31: 60.00 | G31: 300.00 | H31: 2019年追加38万，2020年追加28万 | I31: 2022年议军会议确定增加至270万,1月份另追加30万 | J31: 2
A32: 政府投资审计、外购服务 | B32: 201 | C32: 100.00 | D32: 250.00 | E32: 80.00 | G32: 180.00 | I32: 审计局报告申请增加200万,另2021年还需50万元 | J32: 2
A33: 国有资产清查专项 | B33: 201 | C33: 95.00 | F33: -45.00 | G33: 50.00 | J33: 2
A34: 市级接待专项 | B34: 201 | C34: 80.00 | F34: -20.00 | G34: 60.00 | I34: 按2021年实际支出测算 | J34: 2
A35: 人大政协培训经费 | B35: 201 | C35: 70.00 | D35: 10.00 | E35: 10.00 | G35: 80.00 | I35: 人大40，政协40 | J35: 2
A36: 乡镇消防工作经费 | B36: 224 | C36: 60.00 | G36: 60.00 | I36: 政府常务会议纪要（2018）12号，每年12个镇、街道安排5万/年*12=60万元 | J36: 2
A37: 国库集中支付局设备及维护费用 | B37: 201 | C37: 40.00 | G37: 40.00 | J37: 2
A38: 人大代表群众工作室建设 | B38: 201 | C38: 32.00 | G38: 32.00 | I38: 上级文件要求 | J38: 2
A39: 政协委员工作室建设 | B39: 201 | C39: 32.00 | G39: 32.00 | I39: 上级文件要求 | J39: 2
A40: 武警官兵生活及水电费补助 | B40: 204 | C40: 30.00 | G40: 30.00 | J40: 2
A41: 人大代表经费 | B41: 201 | C41: 26.90 | D41: 1.20 | E41: 1.20 | G41: 28.10 | I41: 按代表人数据实增加 | J41: 2
A42: 综改办专项经费 | B42: 201 | C42: 20.00 | G42: 20.00 | J42: 2
A43: 卫健局基层医疗机构运转经费 | E43: 455.88 | G43: 455.88 | I43: 职业年金267.36万元，乡镇补贴188.52万元
A44: 城管局执法装备添置等经费 | B44: 212 | D44: 140.00 | E44: 140.00 | G44: 140.00 | I44: 协助交警执法违章停车，计划200万，交警30%，城管70%
A45: 车管所建设 | B45: 204 | D45: 60.00 | E45: 60.00 | G45: 60.00 | I45: 非税计划200万，交警30%，城管70%
A46: 乡镇财政管理专项 | B46: 201 | D46: 30.00 | E46: 30.00 | G46: 30.00 | I46: 乡镇财政管理及债务化解绩考奖励 | J46: 2
A47: 村、社区支部书记培训经费 | B47: 201 | D47: 30.00 | E47: 30.00 | G47: 30.00 | H47: 组织部单位专项调入
A48: 组工干部外出培训 | B48: 201 | D48: 22.00 | E48: 22.00 | G48: 22.00 | H48: 组织部单位专项调入
A49: 交流干部生活保障专项经费 | B49: 201 | D49: 25.00 | E49: 20.00 | G49: 20.00 | H49: 政府办单位专项调入
A50: 乡镇、街道人大工作经费 | B50: 201 | D50: 24.00 | E50: 24.00 | G50: 24.00 | I50: 标准：12个乡镇（街道）*2万元，共计24万元。
A51: 教育基金会工作经费 | B51: 205 | D51: 30.00 | E51: 30.00 | G51: 30.00 | H51: 参照老年科协专项2021年35万 | J51: 2
A53: 三、民生事业类项目 | C53: =SUM(C54:C108) -> 42295.28 | D53: 22113.0441 | E53: 16995.8175 | F53: -773.24 | G53: 58517.8575
A54: 机关事业单位退休费 | B54: 208 | C54: 20000.00 | D54: 6000.00 | E54: 5000.00 | G54: =C54+E54+F54 -> 25000.00 | H54: 已核 | J54: 3
A55: 村级组织运转经费 | B55: 213 | C55: 4704.50 | E55: 15.50 | G55: 4720.00 | I55: 按实增加 | J55: 3
A56: 城乡居民基本医疗保险基金补助 | B56: 210 | C56: 2167.00 | D56: 42.54 | E56: 42.54 | G56: 2209.54 | H56: 2021年各级财政配套580元/人，每年增长30元/人 | I56: 中央配套=610*80%=488元/人； 省级配套=（610-488）*70%=85.4元/人； 市县配套=（610-488）*30%=36.6元/人； 市县应配套36.6元/人*60.37万人=2209.54万元 | J56: 3
A57: 职业年金 | B57: 208 | C57: 2000.00 | D57: 551.50 | G57: 2000.00 | I57: 2022年预计虚账做实金额(预计人均4.5万元，退休500人，在职死亡20人，转移47人)据实安排 | J57: 3
A58: 改善办学条件及危房改造专项资金 | B58: 205 | D58: 2000.00 | E58: 2000.00 | G58: 2000.00 | H58: 由教育局单位专项转入
A59: 城乡居民养老保险基金补助 | B59: 208 | C59: 1346.00 | F59: -346.00 | G59: 1000.00 | I59: 政策性配套增加，2020年退休人员补贴718.9万，2020年缴费人员补贴50万，2020年本级财政对贫困人员及特殊人员补贴232.76万元 | J59: 3
A60: 洞庭湖区农民减轻负担转移支付资金 | B60: 213 | C60: 1337.00 | G60: 1337.00 | I60: 共2205万元,乡镇1337万元,另基层水管单位公益性补助240万，一线堤防维护628万纳入水利部门预算 | J60: 3
A61: 基药零差率补偿 | B61: 210 | C61: 1010.00 | D61: 700.00 | G61: 1010.00 | I61: 总额2600万，原渠道统筹700万，上级指标890万 | J61: 3
A62: 殡葬改革经费 | B62: 208 | C62: 1000.00 | F62: -200.00 | G62: 800.00 | H62: 根据实际支出据实拨付 | I62: 包括：工作经费、村级红白理事会经费、老墓整治、棺木收缴等支出 | J62: 3
A63: 死亡抚恤 | B63: 208 | C63: 900.00 | D63: 100.00 | E63: 100.00 | G63: 1000.00 | H63: 根据实际支出据实拨付 | J63: 3
A64: 全市社区运转经费 | B64: 212 | C64: 900.00 | G64: 900.00 | I64: 含民政、城管考核88万 | J64: 3
A65: 公立医院药品零差率补偿 | B65: 210 | C65: 776.00 | G65: 776.00 | J65: 3
A66: 城镇退休人员独生子女奖励 | B66: 208 | C66: 640.00 | D66: 180.00 | E66: 180.00 | G66: 820.00 | H66: 已核 | I66: 政策性配套50%，湘人口发{2014}12号文件，17200人*960元/年*0.5=825.6万 | J66: 3
A67: 基本公共卫生配套经费 | B67: 210 | C67: 600.00 | G67: 600.00 | I67: 政策性配套 | J67: 3
A68: 国有农场改革补助 | B68: 213 | C68: 596.00 | G68: 596.00 | I68: 其中农牧职工养老保险缴费296万，茶盘洲300万 | J68: 3
A69: 残疾人就业保障金 | B69: 208 | C69: 550.00 | G69: 550.00 | I69: 非税安排 | J69: 3
A70: 退役军人优抚本级配套 | B70: 208 | C70: 517.00 | D70: 2198.00 | E70: 483.00 | G70: 1000.00 | H70: 根据实际支出据实解决 | I70: 整合原市级专项：医保七类人员特殊群体医保、企业军转干、义务兵家属优待金、退役人员再就业援助、退役士兵地方一次性经济补助、再就业援助对象社保补贴、自主择业军转干医保、现役士兵立功受奖、优抚对象走访及解困、待安置期间社保医保生活补助等
A71: 农村奖励扶助、特别扶持 | B71: 210 | C71: 410.00 | D71: 150.00 | G71: 410.00 | I71: 湘财教（2013）56号文件要求配套，去年奖扶4818人，特扶973人，今年奖扶6400人，特扶1300人 | J71: 3
A72: 雪亮工程（城区） | B72: 204 | C72: 393.00 | D72: 163.34 | E72: 163.34 | G72: 556.34 | H72: 已核 | I72: 2022年预计建设费369.81万元，维护费39万，链路租金117.53万，另加电费30万，1月份已拨495.999万 | J72: 3
A73: 平安沅江建设 | B73: 204 | C73: 390.00 | F73: -109.80 | G73: 280.20 | H73: 正在送财评 | I73: 1.2.3.7期维护费157.2万元,6期30万,四期39万,五期44万,另加电费10万 | J73: 3
A74: 残疾人困难补助 | B74: 208 | C74: 344.00 | D74: 7.00 | G74: 344.00 | I74: 政策性配套，13000人*75元*12月*0.3 | J74: 3
A75: 医保基金本级配套及离休、伤残医疗保障费 | B75: 210 | C75: 300.00 | D75: 729.31 | E75: 57.31 | G75: 357.31 | H75: 医保基金问题整改 | I75: 1、三项承诺357.31万元 2、离休、伤残医疗费用每年约372万元，是否先剔除医保政策负担75%，余下25%由财政负担。 | J75: 3
A76: 社区惠民项目资金 | B76: 212 | C76: 287.00 | G76: 287.00 | I76: 党建工作考核要求 | J76: 3
A77: 四季红老年移民生活补贴 | B77: 213 | C77: 160.00 | G77: 160.00 | J77: 3
A78: 企业离休人员及遗孀生活补贴 | B78: 208 | C78: 119.80 | F78: -1.64 | G78: 118.16 | H78: 已核 | I78: 遗孀28人，发3个月离休费的7人，特困离休干部11人，2021年提标14.67万，2022年103.49万 | J78: 3
A79: 文化事业发展专项 | B79: 207 | C79: 100.00 | D79: 500.00 | E79: 400.00 | G79: 500.00 | I79: 含宣传部100万及、对外宣传合作经费及文化兴市300万 | J79: 3
A80: 残疾儿童康复救助经费 | B80: 208 | C80: 100.00 | G80: 100.00 | I80: 政府常务会议2019年3号 | J80: 3
A81: 社区党建服务中心建设 | B81: 201 | C81: 100.00 | F81: -30.00 | G81: 70.00 | H81: 社保股核实，双凤60万，新南10万未付 | I81: 政府常务会议纪要，1月份已拨70万 | J81: 3
A82: 政府购买养老服务 | B82: 208 | C82: 80.00 | G82: 80.00 | I82: 政策性配套 | J82: 3
A83: 教学质量奖 | B83: 205 | C83: 80.00 | G83: 80.00 | J83: 5
A84: 独生子女保健费 | B84: 208 | C84: 76.80 | F84: -46.80 | G84: 30.00 | H84: 已核 | I84: 湘财教（2013）56号文件要求配套 | J84: 3
A85: 政法委综治、维稳及信访经费 | B85: 201 | C85: 75.00 | F85: -3.00 | G85: 72.00 | I85: 按全市人口每人一元预算，户籍人口72.26万 | J85: 3
A86: 全市维稳工作经费 | B86: 201 | D86: 300.00 | E86: 300.00 | G86: 300.00 | I86: 1月份已拨277万
A87: 建国前老工人补助 | B87: 208 | C87: 70.00 | F87: -36.00 | G87: 34.00 | H87: 2021年实际支出33.2万 | I87: 政策性配套 | J87: 3
A88: 改制企业社会化移交 | B88: 206 | C88: 50.00 | G88: 50.00 | J88: 3
A89: 老乡村医生生活困难补助 | B89: 210 | C89: 46.18 | D89: 60.82 | E89: 60.82 | G89: 107.00 | I89: 政策性配套，上级转移支付基数 | J89: 3
A90: 资助特困学生、救助特困教师基金 | B90: 205 | C90: 30.00 | G90: 30.00 | J90: 3
A91: 举报毒品违法犯罪奖励经费 | B91: 204 | C91: 20.00 | G91: 20.00 | J91: 6
A92: 文艺作品扶持奖励经费 | B92: 207 | C92: 20.00 | G92: 20.00 | I92: 原文联单位专项13.8万，建议转入 | J92: 5
A93: 长春垸西线堤顶道路硬化工程 | B93: 213 | D93: 2627.24 | E93: 2627.24 | G93: 2627.24 | H93: 工程款1500万，1000万本金，127.2375万利息 | I93: 沅府阅[2021]49号，一次性项目支出 | J93: 6
A94: 困难群众救助本级配套 | B94: 208 | D94: 2000.00 | E94: 2000.00 | G94: 2000.00 | H94: 按年度实际支出据实安排 | I94: 城乡低保配套、特困人员供养资金、孤儿、事实无人抚养儿童生活补助、流浪乞讨人员生活补助、敬老院失能半失能供养人员护理费、乡镇社工站工作经费、五保户供养、敬老院管理人员经费、困难对象保险、临时救济等 | J94: 3
A95: 乡村“雪亮工程”建设与维护 | B95: 204 | D95: 624.13 | E95: 624.12 | G95: 624.12 | I95: 2021年政府常务会议6号，2021年应付60%，624.1266万元，2022年330.5832万元，2023年330.5832万元，1月份已拨624.12万 | J95: 3
A96: 从教30年退休一次性补贴 | B96: 205 | D96: 202.00 | E96: 202.00 | G96: 202.00 | H96: 新增 | I96: 1月分已拨202万
A97: 教育公用经费配套及考点设备改造 | B97: 205 | D97: 380.00 | E97: 380.00 | G97: 380.00 | H97: 新增 | I97: 1月份已拨380万
A98: 教育退休教师慰问体检和乡镇教师乡镇补贴 | B98: 205 | D98: 156.00 | E98: 156.00 | G98: 156.00 | H98: 新增 | I98: 1月份已拨156万
A99: 政通学校小学部租赁费 | B99: 205 | D99: 398.00 | E99: 398.00 | G99: 398.00 | H99: 由教育局单位专项转入 | I99: 1月份已拨398万
A100: 乡村教师定向培养 | B100: 205 | D100: 316.00 | E100: 300.00 | G100: 300.00 | H100: 按年度实际支出据实安排 | I100: 根据市政府委培合同 | J100: 5
A101: 校车运营补贴 | B101: 205 | D101: 330.00 | E101: 329.08 | G101: 329.08 | I101: 1月份已拨付329.08万
A102: 教育安全保障工作经费 | B102: 205 | D102: 190.00 | E102: 190.00 | G102: 190.00
A103: 机关养老保险独生子女父母奖励 | B103: 208 | D103: 289.00 | E103: 280.00 | G103: 280.00 | H103: 已核 | I103: 2022年预计代发独生子女289万（2020年实际发放2547人228万+2022年预计新增600人61万） | J103: 3
A104: 社区卫生服务中心人员工资及工作经费 | B104: 210 | D104: 255.30 | E104: 80.00 | G104: 80.00 | I104: 40人*2万/人，1月份已拨60万 | J104: 3
A105: 企业职工基本养老保险基金补助 | B105: 208 | D105: 218.00 | E105: 218.00 | G105: 218.00 | H105: 已核 | I105: 应配套390万，历年结余172万 | J105: 3
A106: 城乡居民养老保险丧葬补助 | B106: 208 | D106: 216.00 | E106: 180.00 | G106: 180.00 | I106: 《湖南省城乡居民基本养老保险丧葬补助金实施意见》 | J106: 3
A107: 养老保险待遇核查整改工作经费 | B107: 208 | D107: 128.87 | E107: 128.87 | G107: 128.87 | H107: 新增 | I107: 1月份已拨128.87万
A108: 农民工工资保障应急周转金 | B108: 208 | D108: 100.00 | E108: 100.00 | G108: 100.00 | I108: 2019年第3次常务会议，1月份已拨46万 | J108: 3
A110: 四、农林水、环保及城市建设 | C110: =SUM(C111:C131) -> 15195.00 | D110: 13497.50 | E110: 13083.60 | F110: -3720.00 | G110: 24558.60
A111: 生态保护和环境治理 | B111: 211 | C111: 3743.00 | F111: -2500.00 | G111: =C111+E111+F111 -> 1243.00 | H111: 根据政府常务会议 | I111: 农村人居环境服务外包经费 | J111: 4
A112: 工业产业扶持资金 | B112: 206 | C112: 3000.00 | D112: 500.00 | E112: 500.00 | G112: 3500.00 | J112: 4
A113: 乡村振兴衔接资金（行业） | B113: 213 | C113: 1700.00 | F113: -1220.00 | G113: 480.00 | H113: 健康扶贫2022年暂停，平均每月64万 | I113: 教育扶贫助学2021年191万元,防贫保险农业人口10元/人,289万元. | J113: 4
A114: 乡村振兴衔接资金（专项） | B114: 213 | C114: 1500.00 | G114: 1500.00 | I114: 本级配套，其中100万用于一镇两村示范点建设 | J114: 4
A115: 农业保险县级配套资金 | B115: 213 | C115: 1000.00 | D115: 800.00 | E115: 800.00 | G115: 1800.00 | I115: 根据省级文件要求安排，2021年实际配套1800万 | J115: 4
A116: 项目前期业务费 | B116: 201 | C116: 1000.00 | G116: 1000.00 | I116: 发改局主导的全市项目申报 | J116: 4
A117: 现代农业发展资金 | B117: 213 | C117: 1000.00 | D117: 500.00 | E117: 500.00 | G117: 1500.00 | I117: 市委常委会议纪要,产业扶植（现代农业、粮食生产、生猪生产、农信担风险金）其中500万用于扶持芦菇产业发展 | J117: 4
A118: 常年禁渔工作经费 | B118: 213 | C118: 600.00 | D118: 120.00 | G118: 600.00 | I118: 上级补助安排，减“智慧渔政”运维费，增加一艘50吨船的维护费 | J118: 4
A119: 城市生活垃圾焚烧发电项目 | B119: 211 | C119: 407.00 | G119: 407.00 | I119: 上解益阳市 | J119: 4
A120: 河湖垃圾治理经费 | B120: 211 | C120: 400.00 | G120: 400.00 | I120: 政府常务会议纪要 | J120: 4
A121: 安全生产基金 | B121: 224 | C121: 300.00 | G121: =C121+E121+F121 -> 300.00 | I121: 各乡镇，应急事务局等单位 | J121: 4
A122: 防汛抢险工作经费 | B122: 213 | C122: 300.00 | G122: 300.00 | J122: 4
A123: 农村饮水安全工程维修养护资金 | B123: 213 | C123: 100.00 | G123: 100.00 | J123: 4
A124: 气象事务专项 | B124: 220 | C124: 95.00 | G124: 95.00 | I124: 其中区域自动气象观测站网维护10万，气象预警大喇叭和电子屏维护费15万，气象事业费30万，防雷安全监管20万，三农气象服务10万 | J124: 2
A125: 城市桥梁维护 | B125: 214 | C125: 30.00 | G125: 30.00 | J125: 4
A126: 农产品质量安全追溯“身份证”管理体系建设 | B126: 213 | C126: 20.00 | D126: 50.00 | E126: 50.00 | G126: 70.00 | I126: 益政办发（2019）16号，包含畜牧、水产、蔬菜、粮食产地溯源等 | J126: 4
A127: 交通基础设施建设 | B127: 214 | D127: 10000.00 | E127: 10000.00 | G127: 10000.00 | I127: 全市交通建设项目支出
A128: 农房一体确权登记颁证专项 | B128: 213 | D128: 775.00 | E128: 775.00 | G128: 775.00 | I128: 政府常务会议（2020）2号，本项目分三年实施，3101.27万元，2021年775.3922万元，2022年安排777.02万元（2023年付），1月份已拨775万 | J128: 4
A129: 北部片区垃圾焚烧发电项目 | B129: 201 | D129: 382.50 | E129: 105.60 | G129: 105.60 | I129: 镇协调工作经费180万、村协调工作经费50万、农田补偿20万、干警协调工作费用132.5万，1月份已拨276.9万（政府性基金） | J129: 4
A130: 红绿灯等交通安全设施建设 | B130: 204 | D130: 150.00 | E130: 150.00 | G130: 150.00
A131: 植被恢复费安排的专项 | B131: 213 | D131: 220.00 | E131: 203.00 | G131: 203.00 | I131: 非税安排，17万列林业局单位专项
A133: 五、经济发展类项目 | C133: =SUM(C134:C143) -> 5736.00 | D133: 2605.00 | E133: 2580.00 | F133: -16.00 | G133: 8300.00
A134: 税收征管及奖励经费 | B134: 201 | C134: 4000.00 | D134: 2000.00 | E134: 2000.00 | G134: =C134+E134+F134 -> 6000.00 | H134: 据实增加 | I134: 含税务3700、财政400、税控联管单位802、乡镇财政管理及资金监管经费209、乡镇税收征管经费500，税控联管工作经费288万等 | J134: 5
A135: 金财工程维护费用 | B135: 201 | C135: 596.00 | F135: -16.00 | G135: 580.00 | J135: 5
A136: 财评中心评审经费 | B136: 201 | C136: 500.00 | D136: 100.00 | E136: 100.00 | G136: 600.00 | H136: 据实增加 | J136: 5
A137: 全市性招商引资 | B137: 216 | C137: 300.00 | G137: 300.00 | I137: 商务局（投促中心）、财政局 | J137: 5
A138: 财政系统安可替代工程实施 | B138: 201 | C138: 200.00 | G138: 200.00 | J138: 5
A139: 财政业务系统等保测评备案及安全服务费用 | B139: 201 | C139: 100.00 | G139: 100.00 | I139: 益财办（2021）242号 | J139: 5
A140: 经促会工作经费 | B140: 201 | C140: 40.00 | D140: 35.00 | E140: 10.00 | G140: 50.00 | I140: 5个经促会，15万/个，安化80万，其他县50万 | J140: 5
A141: 预算一体化系统维护经费 | B141: 201 | D141: 400.00 | E141: 400.00 | G141: 400.00 | I141: 湘财办（2020）6号，湘财办（2021）11号 | J141: 5
A142: 农信担体系建设 | B142: 201 | D142: 40.00 | E142: 40.00 | G142: 40.00 | I142: 含3名劳务派遣人员工资及工作经费 | J142: 5
A143: “三高四新”财源建设工程 | B143: 201 | D143: 30.00 | E143: 30.00 | G143: 30.00 | I143: 协税办，政府常务会议纪要 | J143: 5
A145: 六、政府性基金安排的项目 | C145: =SUM(C146:C163) -> 73819.14 | D145: =SUM(D146:D163) -> 40742.98 | E145: =SUM(E146:E163) -> 33237.57 | F145: =SUM(F146:F163) -> -34014.14 | G145: =SUM(G146:G163) -> 73042.57
A146: 征地拆迁补偿支出 | C146: 8800.00 | D146: -8300.00 | F146: -8300.00 | G146: =C146+E146+F146 -> 500.00
A147: 创建工作经费和奖励 | C147: =6000-326.33-100-400 -> 5173.67 | D147: 400.00 | F147: -4773.67 | G147: 400.00
A148: 创建引导资金（用于城区基础设施建设） | D148: 1500.00 | E148: 1500.00 | G148: 1500.00
A149: 其他城市建设支出 | D149: 1340.97 | E149: 1340.97 | G149: 1340.97
A150: 农村人居环境整治 | C150: 1500.00 | D150: 2500.00 | E150: 1000.00 | G150: 2500.00
A151: 补助被征地农民支出 | C151: 2000.00 | F151: -2000.00 | G151: 0.00
A152: 其他土地出让金安排的支出 | C152: 14650.00 | D152: 33700.00 | E152: 19050.00 | G152: =C152+E152+F152 -> 33700.00 | I152: 含隐性债务还本支出
A153: 其他土地出让业务支出 | D153: 459.56 | E153: 459.56 | G153: 459.56
A154: 城市基础设施（住建局） | C154: 1380.00 | F154: -1280.00 | G154: 100.00 | I154: 城市基础设施配套费安排的支出
A155: 城市基础设施（住建局） | D155: 849.80 | E155: 849.39 | G155: 849.39
A156: 其他城市基础设施配套费 | D156: 430.61 | E156: 430.61 | G156: 430.61
A157: 中心城区水环境综合治理 | B157: 211 | C157: 1200 | D157: 6000.00 | G157: 1200.00 | I157: 污水处理费安排1200万，PPP项目运营费用，根据合同金额据实安排 | J157: 4
A158: 车辆通行费安排的支出 | C158: 55 | D158: 55.00 | G158: =C158+E158+F158 -> 55.00
A159: 专项债券付息 | C159: 3400.00 | D159: 2923.61 | E159: 2923.61 | G159: 6323.61
A160: 交通基础设施建设 | C160: =36600-74-865.526 -> 35660.47 | D160: -2000.00 | F160: =-18526+865.526 -> -17660.47 | G160: 18000.00 | I160: 包含公路养护中心配套资金2000万，其中（农村公路大中修1000万、库内危桥改造工程300万、农村公路日常养护500万、泗湖山轮渡新设备200万）
A161: 船舶污染物回收 | D161: 220.00 | E161: 220 | G161: 220.00
A162: 中心城区水环境综合治理 | E162: 4800.00 | G162: 4800.00
A163: 其他政府性基金安排的支出 | D163: =656.39+7.04 -> 663.43 | E163: =656.39+7.04 -> 663.43 | G163: 663.43
A165: 七、其他项目 | C165: =SUM(C166:C173) -> 7794.09 | D165: 1000.00 | E165: 2943.26 | F165: -104.00 | G165: 10633.34
A166: 预备费 | B166: 227 | C166: 5000.00 | G166: =C166+E166+F166 -> 5000.00 | I166: 按《预算法》要求设置财力的1%－3% | J166: 6
A167: 非税收入拨款 | B167: 201 | C167: 2065.09 | E167: =734.91+225.12-370+332.6-14.3+210.17-42.04-4-455.88-5+853.7975-51+528.88 -> 1943.26 | G167: 4008.34 | I167: 1月份已拨2440.09万元 | J167: 4
A168: 竹莲收费站退款 | B168: 214 | C168: 400.00 | F168: -100.00 | G168: 300.00 | I168: 上级文件要求，2021-2023年每年300万，2024年429万。 | J168: 6
A169: 水利建设资金 | B169: 213 | C169: 200.00 | G169: 200.00 | I169: 各乡镇，水利局等部门 | J169: 4
A170: 国外政府贷款及卫十项目还本付息 | B170: 232 | C170: 104.00 | F170: -4.00 | G170: 100.00 | I170: 上级文件要求 | J170: 6
A171: 市政府办对口支援 | B171: 201 | C171: 15.00 | G171: 15.00 | I171: 上级文件要求（会同县）暂未取消 | J171: 6
A172: 国家赔偿 | B172: 201 | C172: 10.00 | G172: 10.00 | I172: 按上级要求设置
A173: 益阳师范高等专科学校建设资金 | B173: 205 | D173: 1000.00 | E173: 1000.00 | G173: 1000.00 | I173: 1月份已上缴益阳市
A175: 八、取消的项目 | C175: =SUM(C176:C186) -> 1975 | D175: =SUM(D176:D186) -> 1013 | E175: =SUM(E176:E186) -> 0 | F175: =SUM(F176:F186) -> -1975 | G175: =SUM(G176:G186) -> 0
A176: 五保户供养 | C176: 466.00 | D176: 576.00 | F176: -466.00 | G176: =C176+E176+F176 -> 0.00 | H176: 合并至困难群众救助本级配套 | I176: 800人*12月*600元
A177: 敬老院管理人员经费 | C177: 80.00 | D177: 251.00 | F177: -80.00 | G177: =C177+E177+F177 -> 0.00 | I177: 86人*12月*1800元每月+21*12*2600
A178: 立项争资奖励 | B178: 201 | C178: 400.00 | F178: -400.00 | G178: =C178+E178+F178 -> 0.00 | H178: 2021年实际支出78万，2020年实际支出108万 | I178: 发改局主导的全市立项争资奖励，整合至工业扶持专项
A179: 智慧沅江建设引导资金 | B179: 206 | C179: 300.00 | F179: -300.00 | G179: 0.00 | I179: 整合至工业扶持专项
A180: 村级换届选举 | C180: 180.00 | F180: -180.00 | G180: 0.00
A181: 镇、街道代征社保、医保筹资工作经费 | B181: 208 | C181: 179.00 | D181: 186.00 | F181: -179.00 | G181: 0.00 | H181: 统筹上级专项安排 | I181: 社保部分2021年62.06万，医保估算2022年300万
A182: 专项人口普查 | C182: 150.00 | F182: -150.00 | G182: 0.00
A183: 支持电子商务专项 | C183: 100.00 | F183: -100.00 | G183: 0.00 | I183: （2020）6号会议纪要、沅政办法（2020）23
A184: 村级集体经济发展引导资金 | B184: 213 | C184: 50.00 | F184: -50.00 | G184: 0.00 | I184: 5个村，10万/村，上级要求配套
A185: 教师绩效工资 | C185: 50.00 | F185: -50.00 | G185: 0.00
A186: 老工伤 | C186: 20.00 | F186: -20.00 | G186: 0.00 | I186: 从2012开始连续10年，2022年后不再安排
